Workbook

Sheet 등급집계표
A2: 2019년 부천대학교 연구실 정기안전점검 집계표
A5: 연번 | B5: 구분 | C5: 학과명 | D5: 점검결과
D6: 1등급 | E6: 2등급 | F6: 3등급 | G6: 4등급 | H6: 5등급 | I6: 대상제외 | J6: 계
A7: 1 | B7: 공학,자연과학 | C7: 건축과 | D7: =COUNTIFS(등급표!$C$5:$C$142,$C7,등급표!$P$5:$P$142,1) -> 5 | E7: =COUNTIFS(등급표!$C$5:$C$142,$C7,등급표!$P$5:$P$142,2) -> 5 | F7: =COUNTIFS(등급표!$C$5:$C$142,$C7,등급표!$P$5:$P$142,3) -> 0 | G7: =COUNTIFS(등급표!$C$5:$C$142,$C7,등급표!$P$5:$P$142,4) -> 0 | H7: =COUNTIFS(등급표!$C$5:$C$142,$C7,등급표!$P$5:$P$142,5) -> 0 | I7: =COUNTIFS(등급표!$C$5:$C$142,$C7,등급표!$P$5:$P$142,0) -> 0 | J7: =D7+E7+F7+G7+H7+I7 -> 10
A8: 2 | C8: 섬유패션비지니스과 | D8: =COUNTIFS(등급표!$C$5:$C$142,$C8,등급표!$P$5:$P$142,1) -> 5 | E8: =COUNTIFS(등급표!$C$5:$C$142,$C8,등급표!$P$5:$P$142,2) -> 4 | F8: =COUNTIFS(등급표!$C$5:$C$142,$C8,등급표!$P$5:$P$142,3) -> 0 | G8: =COUNTIFS(등급표!$C$5:$C$142,$C8,등급표!$P$5:$P$142,4) -> 0 | H8: =COUNTIFS(등급표!$C$5:$C$142,$C8,등급표!$P$5:$P$142,5) -> 0 | I8: =COUNTIFS(등급표!$C$5:$C$142,$C8,등급표!$P$5:$P$142,0) -> 0 | J8: =D8+E8+F8+G8+H8+I8 -> 9
A9: 3 | C9: 시험인증융합과(계약학과) | D9: =COUNTIFS(등급표!$C$5:$C$142,$C9,등급표!$P$5:$P$142,1) -> 0 | E9: =COUNTIFS(등급표!$C$5:$C$142,$C9,등급표!$P$5:$P$142,2) -> 1 | F9: =COUNTIFS(등급표!$C$5:$C$142,$C9,등급표!$P$5:$P$142,3) -> 0 | G9: =COUNTIFS(등급표!$C$5:$C$142,$C9,등급표!$P$5:$P$142,4) -> 0 | H9: =COUNTIFS(등급표!$C$5:$C$142,$C9,등급표!$P$5:$P$142,5) -> 0 | I9: =COUNTIFS(등급표!$C$5:$C$142,$C9,등급표!$P$5:$P$142,0) -> 0 | J9: 1
A10: 4 | C10: 식품영양과 | D10: =COUNTIFS(등급표!$C$5:$C$142,$C10,등급표!$P$5:$P$142,1) -> 6 | E10: =COUNTIFS(등급표!$C$5:$C$142,$C10,등급표!$P$5:$P$142,2) -> 2 | F10: =COUNTIFS(등급표!$C$5:$C$142,$C10,등급표!$P$5:$P$142,3) -> 0 | G10: =COUNTIFS(등급표!$C$5:$C$142,$C10,등급표!$P$5:$P$142,4) -> 0 | H10: =COUNTIFS(등급표!$C$5:$C$142,$C10,등급표!$P$5:$P$142,5) -> 0 | I10: =COUNTIFS(등급표!$C$5:$C$142,$C10,등급표!$P$5:$P$142,0) -> 0 | J10: 8
A11: 5 | C11: 영상&게임콘텐츠과 | D11: =COUNTIFS(등급표!$C$5:$C$142,$C11,등급표!$P$5:$P$142,1) -> 2 | E11: =COUNTIFS(등급표!$C$5:$C$142,$C11,등급표!$P$5:$P$142,2) -> 1 | F11: =COUNTIFS(등급표!$C$5:$C$142,$C11,등급표!$P$5:$P$142,3) -> 0 | G11: =COUNTIFS(등급표!$C$5:$C$142,$C11,등급표!$P$5:$P$142,4) -> 0 | H11: =COUNTIFS(등급표!$C$5:$C$142,$C11,등급표!$P$5:$P$142,5) -> 0 | I11: =COUNTIFS(등급표!$C$5:$C$142,$C11,등급표!$P$5:$P$142,0) -> 0 | J11: 3
A12: 6 | C12: 전기과 | D12: =COUNTIFS(등급표!$C$5:$C$142,$C12,등급표!$P$5:$P$142,1) -> 4 | E12: =COUNTIFS(등급표!$C$5:$C$142,$C12,등급표!$P$5:$P$142,2) -> 0 | F12: =COUNTIFS(등급표!$C$5:$C$142,$C12,등급표!$P$5:$P$142,3) -> 0 | G12: =COUNTIFS(등급표!$C$5:$C$142,$C12,등급표!$P$5:$P$142,4) -> 0 | H12: =COUNTIFS(등급표!$C$5:$C$142,$C12,등급표!$P$5:$P$142,5) -> 0 | I12: =COUNTIFS(등급표!$C$5:$C$142,$C12,등급표!$P$5:$P$142,0) -> 0 | J12: 4
A13: 7 | C13: 전자과 | D13: =COUNTIFS(등급표!$C$5:$C$142,$C13,등급표!$P$5:$P$142,1) -> 4 | E13: =COUNTIFS(등급표!$C$5:$C$142,$C13,등급표!$P$5:$P$142,2) -> 6 | F13: =COUNTIFS(등급표!$C$5:$C$142,$C13,등급표!$P$5:$P$142,3) -> 0 | G13: =COUNTIFS(등급표!$C$5:$C$142,$C13,등급표!$P$5:$P$142,4) -> 0 | H13: =COUNTIFS(등급표!$C$5:$C$142,$C13,등급표!$P$5:$P$142,5) -> 0 | I13: =COUNTIFS(등급표!$C$5:$C$142,$C13,등급표!$P$5:$P$142,0) -> 0 | J13: 10
A14: 8 | C14: 정보통신과 | D14: =COUNTIFS(등급표!$C$5:$C$142,$C14,등급표!$P$5:$P$142,1) -> 7 | E14: =COUNTIFS(등급표!$C$5:$C$142,$C14,등급표!$P$5:$P$142,2) -> 4 | F14: =COUNTIFS(등급표!$C$5:$C$142,$C14,등급표!$P$5:$P$142,3) -> 0 | G14: =COUNTIFS(등급표!$C$5:$C$142,$C14,등급표!$P$5:$P$142,4) -> 0 | H14: =COUNTIFS(등급표!$C$5:$C$142,$C14,등급표!$P$5:$P$142,5) -> 0 | I14: =COUNTIFS(등급표!$C$5:$C$142,$C14,등급표!$P$5:$P$142,0) -> 0 | J14: 11
A15: 9 | C15: 지능로봇과 | D15: =COUNTIFS(등급표!$C$5:$C$142,$C15,등급표!$P$5:$P$142,1) -> 4 | E15: =COUNTIFS(등급표!$C$5:$C$142,$C15,등급표!$P$5:$P$142,2) -> 1 | F15: =COUNTIFS(등급표!$C$5:$C$142,$C15,등급표!$P$5:$P$142,3) -> 0 | G15: =COUNTIFS(등급표!$C$5:$C$142,$C15,등급표!$P$5:$P$142,4) -> 0 | H15: =COUNTIFS(등급표!$C$5:$C$142,$C15,등급표!$P$5:$P$142,5) -> 0 | I15: =COUNTIFS(등급표!$C$5:$C$142,$C15,등급표!$P$5:$P$142,0) -> 0 | J15: 5
A16: 10 | C16: 토목과 | D16: =COUNTIFS(등급표!$C$5:$C$142,$C16,등급표!$P$5:$P$142,1) -> 5 | E16: =COUNTIFS(등급표!$C$5:$C$142,$C16,등급표!$P$5:$P$142,2) -> 3 | F16: =COUNTIFS(등급표!$C$5:$C$142,$C16,등급표!$P$5:$P$142,3) -> 0 | G16: =COUNTIFS(등급표!$C$5:$C$142,$C16,등급표!$P$5:$P$142,4) -> 0 | H16: =COUNTIFS(등급표!$C$5:$C$142,$C16,등급표!$P$5:$P$142,5) -> 0 | I16: =COUNTIFS(등급표!$C$5:$C$142,$C16,등급표!$P$5:$P$142,0) -> 0 | J16: 8
A17: 11 | C17: 호텔외식조리과 | D17: =COUNTIFS(등급표!$C$5:$C$142,$C17,등급표!$P$5:$P$142,1) -> 5 | E17: =COUNTIFS(등급표!$C$5:$C$142,$C17,등급표!$P$5:$P$142,2) -> 4 | F17: =COUNTIFS(등급표!$C$5:$C$142,$C17,등급표!$P$5:$P$142,3) -> 0 | G17: =COUNTIFS(등급표!$C$5:$C$142,$C17,등급표!$P$5:$P$142,4) -> 0 | H17: =COUNTIFS(등급표!$C$5:$C$142,$C17,등급표!$P$5:$P$142,5) -> 0 | I17: =COUNTIFS(등급표!$C$5:$C$142,$C17,등급표!$P$5:$P$142,0) -> 0 | J17: =D17+E17+F17+G17+H17+I17 -> 9
A18: 12 | C18: 간호학과(소사) | D18: =COUNTIFS(등급표!$C$5:$C$142,$C18,등급표!$P$5:$P$142,1) -> 3 | E18: =COUNTIFS(등급표!$C$5:$C$142,$C18,등급표!$P$5:$P$142,2) -> 2 | F18: =COUNTIFS(등급표!$C$5:$C$142,$C18,등급표!$P$5:$P$142,3) -> 0 | G18: =COUNTIFS(등급표!$C$5:$C$142,$C18,등급표!$P$5:$P$142,4) -> 0 | H18: =COUNTIFS(등급표!$C$5:$C$142,$C18,등급표!$P$5:$P$142,5) -> 0 | I18: =COUNTIFS(등급표!$C$5:$C$142,$C18,등급표!$P$5:$P$142,0) -> 0 | J18: 5
A19: 13 | C19: 공용실(소사) | D19: =COUNTIFS(등급표!$C$5:$C$142,$C19,등급표!$P$5:$P$142,1) -> 9 | E19: =COUNTIFS(등급표!$C$5:$C$142,$C19,등급표!$P$5:$P$142,2) -> 0 | F19: =COUNTIFS(등급표!$C$5:$C$142,$C19,등급표!$P$5:$P$142,3) -> 0 | G19: =COUNTIFS(등급표!$C$5:$C$142,$C19,등급표!$P$5:$P$142,4) -> 0 | H19: =COUNTIFS(등급표!$C$5:$C$142,$C19,등급표!$P$5:$P$142,5) -> 0 | I19: =COUNTIFS(등급표!$C$5:$C$142,$C19,등급표!$P$5:$P$142,0) -> 0 | J19: 9
A20: 계 | D20: =SUM(D7:D19) -> 59 | E20: =SUM(E7:E19) -> 33 | F20: 0 | G20: 0 | H20: 0 | I20: 0 | J20: =SUM(D20:I20) -> 92
A21: 백분율 | D21: =D20/J20 -> 0.6413043478 | E21: =E20/J20 -> 0.3586956522 | F21: =F20/J20 -> 0 | G21: =G20/J20 -> 0 | H21: =H20/J20 -> 0 | I21: =I20/J20 -> 0 | J21: =SUM(D21:I21) -> 1
A22: 1 | B22: 예체능 | C22: 디지털미디어디자인과 | D22: =COUNTIFS(등급표!$C$5:$C$142,$C22,등급표!$P$5:$P$142,1) -> 12 | E22: =COUNTIFS(등급표!$C$5:$C$142,$C22,등급표!$P$5:$P$142,2) -> 3 | F22: =COUNTIFS(등급표!$C$5:$C$142,$C22,등급표!$P$5:$P$142,3) -> 0 | G22: =COUNTIFS(등급표!$C$5:$C$142,$C22,등급표!$P$5:$P$142,4) -> 0 | H22: =COUNTIFS(등급표!$C$5:$C$142,$C22,등급표!$P$5:$P$142,5) -> 0 | I22: =COUNTIFS(등급표!$C$5:$C$142,$C22,등급표!$P$5:$P$142,0) -> 0 | J22: =D22+E22+F22+G22+H22+I22 -> 15
A23: 2 | C23: 뷰티융합비즈니스과 | D23: =COUNTIFS(등급표!$C$5:$C$142,$C23,등급표!$P$5:$P$142,1) -> 1 | E23: =COUNTIFS(등급표!$C$5:$C$142,$C23,등급표!$P$5:$P$142,2) -> 0 | F23: =COUNTIFS(등급표!$C$5:$C$142,$C23,등급표!$P$5:$P$142,3) -> 0 | G23: =COUNTIFS(등급표!$C$5:$C$142,$C23,등급표!$P$5:$P$142,4) -> 0 | H23: =COUNTIFS(등급표!$C$5:$C$142,$C23,등급표!$P$5:$P$142,5) -> 0 | I23: =COUNTIFS(등급표!$C$5:$C$142,$C23,등급표!$P$5:$P$142,0) -> 0 | J23: =D23+E23+F23+G23+H23+I23 -> 1
A24: 3 | C24: 뷰티케어과(뷰티전공) | D24: =COUNTIFS(등급표!$C$5:$C$142,$C24,등급표!$P$5:$P$142,1) -> 2 | E24: =COUNTIFS(등급표!$C$5:$C$142,$C24,등급표!$P$5:$P$142,2) -> 0 | F24: =COUNTIFS(등급표!$C$5:$C$142,$C24,등급표!$P$5:$P$142,3) -> 0 | G24: =COUNTIFS(등급표!$C$5:$C$142,$C24,등급표!$P$5:$P$142,4) -> 0 | H24: =COUNTIFS(등급표!$C$5:$C$142,$C24,등급표!$P$5:$P$142,5) -> 0 | I24: =COUNTIFS(등급표!$C$5:$C$142,$C24,등급표!$P$5:$P$142,0) -> 0 | J24: 2
A25: 4 | C25: 뷰티케어과(헤어전공) | D25: =COUNTIFS(등급표!$C$5:$C$142,$C25,등급표!$P$5:$P$142,1) -> 2 | E25: =COUNTIFS(등급표!$C$5:$C$142,$C25,등급표!$P$5:$P$142,2) -> 0 | F25: =COUNTIFS(등급표!$C$5:$C$142,$C25,등급표!$P$5:$P$142,3) -> 0 | G25: =COUNTIFS(등급표!$C$5:$C$142,$C25,등급표!$P$5:$P$142,4) -> 0 | H25: =COUNTIFS(등급표!$C$5:$C$142,$C25,등급표!$P$5:$P$142,5) -> 0 | I25: =COUNTIFS(등급표!$C$5:$C$142,$C25,등급표!$P$5:$P$142,0) -> 0 | J25: 2
A26: 5 | C26: 실내건축디자인과 | D26: =COUNTIFS(등급표!$C$5:$C$142,$C26,등급표!$P$5:$P$142,1) -> 10 | E26: =COUNTIFS(등급표!$C$5:$C$142,$C26,등급표!$P$5:$P$142,2) -> 11 | F26: =COUNTIFS(등급표!$C$5:$C$142,$C26,등급표!$P$5:$P$142,3) -> 0 | G26: =COUNTIFS(등급표!$C$5:$C$142,$C26,등급표!$P$5:$P$142,4) -> 0 | H26: =COUNTIFS(등급표!$C$5:$C$142,$C26,등급표!$P$5:$P$142,5) -> 0 | I26: =COUNTIFS(등급표!$C$5:$C$142,$C26,등급표!$P$5:$P$142,0) -> 0 | J26: 21
A27: 6 | C27: 재활스포츠과 | D27: =COUNTIFS(등급표!$C$5:$C$142,$C27,등급표!$P$5:$P$142,1) -> 3 | E27: =COUNTIFS(등급표!$C$5:$C$142,$C27,등급표!$P$5:$P$142,2) -> 1 | F27: =COUNTIFS(등급표!$C$5:$C$142,$C27,등급표!$P$5:$P$142,3) -> 0 | G27: =COUNTIFS(등급표!$C$5:$C$142,$C27,등급표!$P$5:$P$142,4) -> 0 | H27: =COUNTIFS(등급표!$C$5:$C$142,$C27,등급표!$P$5:$P$142,5) -> 0 | I27: =COUNTIFS(등급표!$C$5:$C$142,$C27,등급표!$P$5:$P$142,0) -> 0 | J27: =D27+E27+F27+G27+H27+I27 -> 4
A28: 계 | D28: =SUM(D22:D27) -> 30 | E28: =SUM(E22:E27) -> 15 | F28: 0 | G28: 0 | H28: 0 | I28: 0 | J28: =SUM(D28:I28) -> 45
A29: 백분율 | D29: =D28/J28 -> 0.6666666667 | E29: =E28/J28 -> 0.3333333333 | F29: =F28/J28 -> 0 | G29: =G28/J28 -> 0 | H29: =H28/J28 -> 0 | I29: =I28/J28 -> 0 | J29: =SUM(D29:I29) -> 1
C30: 0 | D30: 0 | E30: 0 | F30: 0 | G30: 0 | H30: 0 | I30: 0
A31: 계 | D31: =SUM(D20+D28) -> 89 | E31: =SUM(E20+E28) -> 48 | F31: 0 | G31: 0 | H31: 0 | I31: 0 | J31: 137
A32: 백분율 | D32: =D31/$J31 -> 0.6496350365 | E32: =E31/$J31 -> 0.3503649635 | F32: 0 | G32: 0 | H32: 0 | I32: 0 | J32: =SUM(D32:I32) -> 1

Sheet 등급표
A2: 2019년 연구실 안전진단 등급표 | H2: 분야별 등급 및 종합등급
A4: 번호 | B4: 구분 | C4: 학과명 | D4: 연구실명 | E4: 건물명 | F4: 호실 | G4: 정기/정밀 | H4: 일반 안전 | I4: 위생 안전 | J4: 전기 안전 | K4: 소방 안전 | L4: 화공 안전 | M4: 가스 안전 | N4: 기계 안전 | O4: 생물 안전 | P4: 종합 등급
A5: 86 | B5: 공학,자연과학 | C5: 건축과 | D5: 환경연구실 | E5: 공학관 | F5: AB107 | G5: 정기 | H5: 1 | I5: 1 | J5: 1 | K5: 1 | L5: 1 | M5: 1 | N5: 1 | O5: 1 | P5: 1
A6: 87 | B6: 공학,자연과학 | C6: 건축과 | D6: 컴퓨터그래픽실 | E6: 공학관 | F6: A0403 | G6: 정기 | H6: 1 | I6: 1 | J6: 1 | K6: 2 | L6: 1 | M6: 1 | N6: 1 | O6: 1 | P6: 2
A7: 88 | B7: 공학,자연과학 | C7: 건축과 | D7: 프레젠테이션실 | E7: 공학관 | F7: A0404 | G7: 정기 | H7: 1 | I7: 1 | J7: 1 | K7: 1 | L7: 1 | M7: 1 | N7: 1 | O7: 1 | P7: 1
A8: 89 | B8: 공학,자연과학 | C8: 건축과 | D8: 첨단강의실1 | E8: 공학관 | F8: A0502 | G8: 정기 | H8: 1 | I8: 1 | J8: 1 | K8: 2 | L8: 1 | M8: 1 | N8: 1 | O8: 1 | P8: 2
A9: 90 | B9: 공학,자연과학 | C9: 건축과 | D9: 첨단강의실2 | E9: 공학관 | F9: A0503 | G9: 정기 | H9: 1 | I9: 1 | J9: 1 | K9: 1 | L9: 1 | M9: 1 | N9: 1 | O9: 1 | P9: 1
A10: 91 | B10: 공학,자연과학 | C10: 건축과 | D10: 첨단강의실3 | E10: 공학관 | F10: A0507 | G10: 정기 | H10: 1 | I10: 1 | J10: 1 | K10: 2 | L10: 1 | M10: 1 | N10: 1 | O10: 1 | P10: 2
A11: 92 | B11: 공학,자연과학 | C11: 건축과 | D11: 설계STUDIO-A | E11: 공학관 | F11: A0508 | G11: 정기 | H11: 1 | I11: 1 | J11: 1 | K11: 2 | L11: 1 | M11: 1 | N11: 1 | O11: 1 | P11: 2
A12: 93 | B12: 공학,자연과학 | C12: 건축과 | D12: 설계STUDIO-B | E12: 공학관 | F12: A0509 | G12: 정기 | H12: 1 | I12: 1 | J12: 1 | K12: 1 | L12: 1 | M12: 1 | N12: 1 | O12: 1 | P12: 1
A13: 94 | B13: 공학,자연과학 | C13: 건축과 | D13: 모형제작실 | E13: 공학관 | F13: A0602 | G13: 정기 | H13: 2 | I13: 1 | J13: 1 | K13: 1 | L13: 1 | M13: 1 | N13: 1 | O13: 1 | P13: 2
A14: 95 | B14: 공학,자연과학 | C14: 건축과 | D14: 건축CAD실 | E14: 예지관 | F14: C0106 | G14: 정기 | H14: 1 | I14: 1 | J14: 1 | K14: 1 | L14: 1 | M14: 1 | N14: 1 | O14: 1 | P14: 1
A15: 37 | B15: 공학,자연과학 | C15: 섬유패션비지니스과 | D15: 섬유패션CAD실 | E15: 한길관 | F15: E0401 | G15: 정기 | H15: 1 | I15: 1 | J15: 1 | K15: 1 | L15: 1 | M15: 1 | N15: 1 | O15: 1 | P15: 1
A16: 38 | B16: 공학,자연과학 | C16: 섬유패션비지니스과 | D16: 가발공정실 | E16: 한길관 | F16: E0403 | G16: 정기 | H16: 1 | I16: 1 | J16: 1 | K16: 1 | L16: 1 | M16: 1 | N16: 1 | O16: 1 | P16: 1
A17: 39 | B17: 공학,자연과학 | C17: 섬유패션비지니스과 | D17: 섬유패션실습실(Ⅱ) | E17: 한길관 | F17: E0406 | G17: 정기 | H17: 1 | I17: 1 | J17: 1 | K17: 2 | L17: 1 | M17: 1 | N17: 1 | O17: 1 | P17: 2
A18: 40 | B18: 공학,자연과학 | C18: 섬유패션비지니스과 | D18: 섬유패션실습실(Ⅲ) | E18: 한길관 | F18: E0409 | G18: 정기 | H18: 1 | I18: 1 | J18: 1 | K18: 2 | L18: 1 | M18: 1 | N18: 1 | O18: 1 | P18: 2
A19: 41 | B19: 공학,자연과학 | C19: 섬유패션비지니스과 | D19: 실습재료실 | E19: 한길관 | F19: E0101 | G19: 정밀 | H19: 1 | I19: 2 | J19: 1 | K19: 1 | L19: 1 | M19: 1 | N19: 1 | O19: 1 | P19: 2
A20: 42 | B20: 공학,자연과학 | C20: 섬유패션비지니스과 | D20: 섬유패션실습실(Ⅰ) | E20: 한길관 | F20: E0102 | G20: 정밀 | H20: 1 | I20: 1 | J20: 1 | K20: 1 | L20: 2 | M20: 1 | N20: 1 | O20: 1 | P20: 2
A21: 43 | B21: 공학,자연과학 | C21: 섬유패션비지니스과 | D21: NCS편직실습실 | E21: 한길관 | F21: E0428 | G21: 정기 | H21: 1 | I21: 1 | J21: 1 | K21: 1 | L21: 1 | M21: 1 | N21: 1 | O21: 1 | P21: 1
A22: 44 | B22: 공학,자연과학 | C22: 섬유패션비지니스과 | D22: 섬유패션 전자상거래실 | E22: 한길관 | F22: E0230 | G22: 정기 | H22: 1 | I22: 1 | J22: 1 | K22: 1 | L22: 1 | M22: 1 | N22: 1 | O22: 1 | P22: 1
A23: 45 | B23: 공학,자연과학 | C23: 섬유패션비지니스과 | D23: 컴퓨터니트실험실 | E23: 한길관 | F23: EB105 | G23: 정기 | H23: 1 | I23: 1 | J23: 1 | K23: 1 | L23: 1 | M23: 1 | N23: 1 | O23: 1 | P23: 1
A24: 128 | B24: 공학,자연과학 | C24: 시험인증융합과(계약학과) | D24: 3실습실 | E24: 꿈집 | F24: B0904 | G24: 정기 | H24: 2 | I24: 1 | J24: 2 | K24: 1 | L24: 1 | M24: 1 | N24: 1 | O24: 1 | P24: 2
A25: 61 | B25: 공학,자연과학 | C25: 식품영양과 | D25: 종합실험실 | E25: 예지관 | F25: C0101 | G25: 정밀 | H25: 1 | I25: 2 | J25: 1 | K25: 1 | L25: 2 | M25: 1 | N25: 1 | O25: 1 | P25: 2
A26: 62 | B26: 공학,자연과학 | C26: 식품영양과 | D26: 실험준비실 | E26: 예지관 | F26: C0102 | G26: 정밀 | H26: 1 | I26: 2 | J26: 1 | K26: 1 | L26: 1 | M26: 1 | N26: 1 | O26: 1 | P26: 2
A27: 63 | B27: 공학,자연과학 | C27: 식품영양과 | D27: 기구실 | E27: 예지관 | F27: C0103 | G27: 정밀 | H27: 1 | I27: 1 | J27: 1 | K27: 1 | L27: 1 | M27: 1 | N27: 1 | O27: 1 | P27: 1
A28: 64 | B28: 공학,자연과학 | C28: 식품영양과 | D28: 종합실습실 | E28: 예지관 | F28: C0306 | G28: 정기 | H28: 1 | I28: 1 | J28: 1 | K28: 1 | L28: 1 | M28: 1 | N28: 1 | O28: 1 | P28: 1
A29: 65 | B29: 공학,자연과학 | C29: 식품영양과 | D29: 조리과학실 | E29: 예지관 | F29: C0307 | G29: 정기 | H29: 1 | I29: 1 | J29: 1 | K29: 1 | L29: 1 | M29: 1 | N29: 1 | O29: 1 | P29: 1
A30: 66 | B30: 공학,자연과학 | C30: 식품영양과 | D30: 조리실습실 | E30: 예지관 | F30: C0308 | G30: 정밀 | H30: 1 | I30: 1 | J30: 1 | K30: 1 | L30: 1 | M30: 1 | N30: 1 | O30: 1 | P30: 1
A31: 67 | B31: 공학,자연과학 | C31: 식품영양과 | D31: 서양조리실습실 | E31: 예지관 | F31: C0408 | G31: 정밀 | H31: 1 | I31: 1 | J31: 1 | K31: 1 | L31: 1 | M31: 1 | N31: 1 | O31: 1 | P31: 1
A32: 68 | B32: 공학,자연과학 | C32: 식품영양과 | D32: 관능평가실 | E32: 예지관 | F32: C0509 | G32: 정기 | H32: 1 | I32: 1 | J32: 1 | K32: 1 | L32: 1 | M32: 1 | N32: 1 | O32: 1 | P32: 1
A33: 15 | B33: 공학,자연과학 | C33: 영상&게임콘텐츠과 | D33: 3D VISUAL실 | E33: 한길관 | F33: E0416 | G33: 정기 | H33: 1 | I33: 1 | J33: 1 | K33: 1 | L33: 1 | M33: 1 | N33: 1 | O33: 1 | P33: 1
A34: 16 | B34: 공학,자연과학 | C34: 영상&게임콘텐츠과 | D34: 컴퓨터실 | E34: 한길관 | F34: E0419 | G34: 정기 | H34: 1 | I34: 1 | J34: 1 | K34: 1 | L34: 1 | M34: 1 | N34: 1 | O34: 1 | P34: 1
A35: 17 | B35: 공학,자연과학 | C35: 영상&게임콘텐츠과 | D35: 3D STATION실 | E35: 한길관 | F35: E0438 | G35: 정기 | H35: 1 | I35: 1 | J35: 2 | K35: 1 | L35: 1 | M35: 1 | N35: 1 | O35: 1 | P35: 2
A36: 18 | B36: 공학,자연과학 | C36: 전기과 | D36: 전기공사실습실 | E36: 한길관 | F36: E0323 | G36: 정기 | H36: 1 | I36: 1 | J36: 1 | K36: 1 | L36: 1 | M36: 1 | N36: 1 | O36: 1 | P36: 1
A37: 19 | B37: 공학,자연과학 | C37: 전기과 | D37: 시퀀스제어실습실 | E37: 한길관 | F37: E0338 | G37: 정기 | H37: 1 | I37: 1 | J37: 1 | K37: 1 | L37: 1 | M37: 1 | N37: 1 | O37: 1 | P37: 1
A38: 20 | B38: 공학,자연과학 | C38: 전기과 | D38: 전기CAD실 | E38: 한길관 | F38: E0422 | G38: 정기 | H38: 1 | I38: 1 | J38: 1 | K38: 1 | L38: 1 | M38: 1 | N38: 1 | O38: 1 | P38: 1
A39: 21 | B39: 공학,자연과학 | C39: 전기과 | D39: 전기실습실 | E39: 한길관 | F39: E0432 | G39: 정기 | H39: 1 | I39: 1 | J39: 1 | K39: 1 | L39: 1 | M39: 1 | N39: 1 | O39: 1 | P39: 1
A40: 22 | B40: 공학,자연과학 | C40: 전자과 | D40: Project실습실 | E40: 한길관 | F40: E0201 | G40: 정밀 | H40: 1 | I40: 2 | J40: 2 | K40: 2 | L40: 2 | M40: 1 | N40: 1 | O40: 1 | P40: 2
A41: 23 | B41: 공학,자연과학 | C41: 전자과 | D41: 컴퓨터실습실 | E41: 한길관 | F41: E0203 | G41: 정기 | H41: 1 | I41: 1 | J41: 1 | K41: 2 | L41: 1 | M41: 1 | N41: 1 | O41: 1 | P41: 2
A42: 24 | B42: 공학,자연과학 | C42: 전자과 | D42: 디지털공학실험실 | E42: 한길관 | F42: E0207 | G42: 정기 | H42: 1 | I42: 1 | J42: 1 | K42: 1 | L42: 1 | M42: 1 | N42: 1 | O42: 1 | P42: 1
A43: 25 | B43: 공학,자연과학 | C43: 전자과 | D43: 반도체공정장비실1 | E43: 한길관 | F43: E0212 | G43: 정기 | H43: 1 | I43: 1 | J43: 1 | K43: 2 | L43: 1 | M43: 1 | N43: 1 | O43: 1 | P43: 2
A44: 26 | B44: 공학,자연과학 | C44: 전자과 | D44: 반도체공정장비실2 | E44: 한길관 | F44: E0213 | G44: 정기 | H44: 1 | I44: 1 | J44: 2 | K44: 1 | L44: 1 | M44: 1 | N44: 1 | O44: 1 | P44: 2
A45: 27 | B45: 공학,자연과학 | C45: 전자과 | D45: 전자공학실험실 | E45: 한길관 | F45: E0216 | G45: 정기 | H45: 1 | I45: 1 | J45: 1 | K45: 1 | L45: 1 | M45: 1 | N45: 1 | O45: 1 | P45: 1
A46: 28 | B46: 공학,자연과학 | C46: 전자과 | D46: 자동화시스템실험실 | E46: 한길관 | F46: E0236 | G46: 정밀 | H46: 1 | I46: 1 | J46: 2 | K46: 1 | L46: 1 | M46: 1 | N46: 2 | O46: 1 | P46: 2
A47: 29 | B47: 공학,자연과학 | C47: 전자과 | D47: 전자응용실험실 | E47: 한길관 | F47: E0316 | G47: 정기 | H47: 1 | I47: 1 | J47: 2 | K47: 1 | L47: 1 | M47: 1 | N47: 1 | O47: 1 | P47: 2
A48: 30 | B48: 공학,자연과학 | C48: 전자과 | D48: 전자제어실험실 | E48: 한길관 | F48: E0320 | G48: 정기 | H48: 1 | I48: 1 | J48: 1 | K48: 1 | L48: 1 | M48: 1 | N48: 1 | O48: 1 | P48: 1
A49: 31 | B49: 공학,자연과학 | C49: 전자과 | D49: 반도체요소기술실험실 | E49: 한길관 | F49: E0317 | G49: 정기 | H49: 1 | I49: 1 | J49: 1 | K49: 1 | L49: 1 | M49: 1 | N49: 1 | O49: 1 | P49: 1
A50: 117 | B50: 공학,자연과학 | C50: 정보통신과 | D50: 컴퓨터2실 | E50: 꿈집 | F50: B1001 | G50: 정기 | H50: 1 | I50: 1 | J50: 1 | K50: 1 | L50: 1 | M50: 1 | N50: 1 | O50: 1 | P50: 1
A51: 118 | B51: 공학,자연과학 | C51: 정보통신과 | D51: 컴퓨터1실 | E51: 꿈집 | F51: B1004 | G51: 정기 | H51: 1 | I51: 1 | J51: 1 | K51: 1 | L51: 1 | M51: 1 | N51: 1 | O51: 1 | P51: 1
A52: 119 | B52: 공학,자연과학 | C52: 정보통신과 | D52: 응용소프트웨어실 | E52: 꿈집 | F52: B1005 | G52: 정기 | H52: 2 | I52: 1 | J52: 1 | K52: 1 | L52: 1 | M52: 1 | N52: 1 | O52: 1 | P52: 2
A53: 120 | B53: 공학,자연과학 | C53: 정보통신과 | D53: 응용전자실험실 | E53: 꿈집 | F53: B1008 | G53: 정기 | H53: 1 | I53: 1 | J53: 1 | K53: 1 | L53: 1 | M53: 1 | N53: 1 | O53: 1 | P53: 1
A54: 121 | B54: 공학,자연과학 | C54: 정보통신과 | D54: 네트워크실 | E54: 꿈집 | F54: B1102 | G54: 정기 | H54: 1 | I54: 1 | J54: 2 | K54: 1 | L54: 1 | M54: 1 | N54: 1 | O54: 1 | P54: 2
A55: 122 | B55: 공학,자연과학 | C55: 정보통신과 | D55: 아날로그실습실 | E55: 꿈집 | F55: B1108 | G55: 정기 | H55: 1 | I55: 1 | J55: 1 | K55: 1 | L55: 1 | M55: 1 | N55: 1 | O55: 1 | P55: 1
A56: 123 | B56: 공학,자연과학 | C56: 정보통신과 | D56: WEBMASTER실 | E56: 꿈집 | F56: B1204 | G56: 정기 | H56: 1 | I56: 1 | J56: 1 | K56: 1 | L56: 1 | M56: 1 | N56: 1 | O56: 1 | P56: 1
A57: 124 | B57: 공학,자연과학 | C57: 정보통신과 | D57: 정보통신실습실 | E57: 꿈집 | F57: B1215 | G57: 정기 | H57: 2 | I57: 1 | J57: 1 | K57: 1 | L57: 1 | M57: 1 | N57: 1 | O57: 1 | P57: 2
A58: 125 | B58: 공학,자연과학 | C58: 정보통신과 | D58: 디지털통신실험실 | E58: 꿈집 | F58: B1304 | G58: 정기 | H58: 1 | I58: 1 | J58: 1 | K58: 1 | L58: 1 | M58: 1 | N58: 1 | O58: 1 | P58: 1
A59: 126 | B59: 공학,자연과학 | C59: 정보통신과 | D59: e-교실 | E59: 꿈집 | F59: B1305-1 | G59: 정기 | H59: 1 | I59: 1 | J59: 1 | K59: 1 | L59: 1 | M59: 1 | N59: 1 | O59: 1 | P59: 1
A60: 127 | B60: 공학,자연과학 | C60: 정보통신과 | D60: 캡스톤디자인Ⅲ | E60: 꿈집 | F60: B1305 | G60: 정기 | H60: 1 | I60: 1 | J60: 2 | K60: 1 | L60: 1 | M60: 1 | N60: 1 | O60: 1 | P60: 2
A61: 32 | B61: 공학,자연과학 | C61: 지능로봇과 | D61: 전동기제어실습실 | E61: 한길관 | F61: E0218 | G61: 정기 | H61: 1 | I61: 1 | J61: 1 | K61: 1 | L61: 1 | M61: 1 | N61: 1 | O61: 1 | P61: 1
A62: 33 | B62: 공학,자연과학 | C62: 지능로봇과 | D62: 제1컴퓨터실습실 | E62: 한길관 | F62: E0222 | G62: 정기 | H62: 1 | I62: 1 | J62: 1 | K62: 1 | L62: 1 | M62: 1 | N62: 1 | O62: 1 | P62: 1
A63: 34 | B63: 공학,자연과학 | C63: 지능로봇과 | D63: 기초전자실험실 | E63: 한길관 | F63: E0228 | G63: 정밀 | H63: 1 | I63: 2 | J63: 1 | K63: 1 | L63: 2 | M63: 1 | N63: 2 | O63: 1 | P63: 2
A64: 35 | B64: 공학,자연과학 | C64: 지능로봇과 | D64: 로봇공학실 | E64: 한길관 | F64: E0301 | G64: 정기 | H64: 1 | I64: 1 | J64: 1 | K64: 1 | L64: 1 | M64: 1 | N64: 1 | O64: 1 | P64: 1
A65: 36 | B65: 공학,자연과학 | C65: 지능로봇과 | D65: 시퀸스실습실 | E65: 한길관 | F65: E0343 | G65: 정기 | H65: 1 | I65: 1 | J65: 1 | K65: 1 | L65: 1 | M65: 1 | N65: 1 | O65: 1 | P65: 1
A66: 78 | B66: 공학,자연과학 | C66: 토목과 | D66: 토질실험실 | E66: 공학관 | F66: A0101 | G66: 정밀 | H66: 1 | I66: 1 | J66: 1 | K66: 1 | L66: 1 | M66: 1 | N66: 1 | O66: 1 | P66: 1
A67: 79 | B67: 공학,자연과학 | C67: 토목과 | D67: 토질실험준비실 | E67: 공학관 | F67: A0102 | G67: 정밀 | H67: 1 | I67: 1 | J67: 1 | K67: 1 | L67: 1 | M67: 1 | N67: 1 | O67: 1 | P67: 1
A68: 80 | B68: 공학,자연과학 | C68: 토목과 | D68: 환경실험실 | E68: 공학관 | F68: A0201 | G68: 정기 | H68: 1 | I68: 1 | J68: 1 | K68: 1 | L68: 1 | M68: 1 | N68: 1 | O68: 1 | P68: 1
A69: 81 | B69: 공학,자연과학 | C69: 토목과 | D69: 측량실 | E69: 공학관 | F69: A0205 | G69: 정기 | H69: 1 | I69: 1 | J69: 1 | K69: 1 | L69: 1 | M69: 1 | N69: 1 | O69: 1 | P69: 1
A70: 82 | B70: 공학,자연과학 | C70: 토목과 | D70: CAD실 | E70: 공학관 | F70: A0309 | G70: 정기 | H70: 2 | I70: 1 | J70: 1 | K70: 1 | L70: 1 | M70: 1 | N70: 1 | O70: 1 | P70: 2
A71: 83 | B71: 공학,자연과학 | C71: 토목과 | D71: 전산구조설계실 | E71: 공학관 | F71: A0310 | G71: 정기 | H71: 2 | I71: 1 | J71: 1 | K71: 1 | L71: 1 | M71: 1 | N71: 1 | O71: 1 | P71: 2
A72: 84 | B72: 공학,자연과학 | C72: 토목과 | D72: 구조재료실험실 | E72: 공학관 | F72: AB101 | G72: 정밀 | H72: 1 | I72: 1 | J72: 1 | K72: 1 | L72: 1 | M72: 1 | N72: 1 | O72: 1 | P72: 1
A73: 85 | B73: 공학,자연과학 | C73: 토목과 | D73: 수리실험실 | E73: 공학관 | F73: AB102 | G73: 정기 | H73: 1 | I73: 1 | J73: 2 | K73: 1 | L73: 1 | M73: 1 | N73: 1 | O73: 1 | P73: 2
A74: 69 | B74: 공학,자연과학 | C74: 호텔외식조리과 | D74: 한식조리실 | E74: 예지관 | F74: C0201 | G74: 정밀 | H74: 1 | I74: 1 | J74: 2 | K74: 1 | L74: 1 | M74: 1 | N74: 1 | O74: 1 | P74: 2
A75: 70 | B75: 공학,자연과학 | C75: 호텔외식조리과 | D75: 제과제빵실 | E75: 예지관 | F75: C0203 | G75: 정밀 | H75: 1 | I75: 1 | J75: 1 | K75: 2 | L75: 1 | M75: 1 | N75: 1 | O75: 1 | P75: 2
A76: 71 | B76: 공학,자연과학 | C76: 호텔외식조리과 | D76: 식음료 및 식공간 연출 | E76: 예지관 | F76: C0205 | G76: 정기 | H76: 1 | I76: 1 | J76: 1 | K76: 1 | L76: 1 | M76: 1 | N76: 1 | O76: 1 | P76: 1
A77: 72 | B77: 공학,자연과학 | C77: 호텔외식조리과 | D77: 양식조리실 | E77: 예지관 | F77: C0301 | G77: 정밀 | H77: 1 | I77: 1 | J77: 1 | K77: 1 | L77: 1 | M77: 1 | N77: 1 | O77: 1 | P77: 1
A78: 73 | B78: 공학,자연과학 | C78: 호텔외식조리과 | D78: 푸드스튜디오 | E78: 예지관 | F78: C0401 | G78: 정밀 | H78: 1 | I78: 1 | J78: 2 | K78: 1 | L78: 1 | M78: 1 | N78: 1 | O78: 1 | P78: 2
A79: 74 | B79: 공학,자연과학 | C79: 호텔외식조리과 | D79: 메뉴 개발실1 | E79: 예지관 | F79: C0501 | G79: 정밀 | H79: 1 | I79: 1 | J79: 2 | K79: 1 | L79: 1 | M79: 1 | N79: 1 | O79: 1 | P79: 2
A80: 75 | B80: 공학,자연과학 | C80: 호텔외식조리과 | D80: 메뉴 개발실2 | E80: 예지관 | F80: C0502 | G80: 정밀 | H80: 1 | I80: 1 | J80: 1 | K80: 1 | L80: 1 | M80: 1 | N80: 1 | O80: 1 | P80: 1
A81: 76 | B81: 공학,자연과학 | C81: 호텔외식조리과 | D81: NCS-Multipurpose Kitchen | E81: 한길관 | F81: EB135 | G81: 정밀 | H81: 1 | I81: 1 | J81: 1 | K81: 1 | L81: 1 | M81: 1 | N81: 1 | O81: 1 | P81: 1
A82: 77 | B82: 공학,자연과학 | C82: 호텔외식조리과 | D82: NCS-BakingScience&Art Room | E82: 한길관 | F82: EB135-1 | G82: 정기 | H82: 1 | I82: 1 | J82: 1 | K82: 1 | L82: 1 | M82: 1 | N82: 1 | O82: 1 | P82: 1
A83: 1 | B83: 공학,자연과학 | C83: 간호학과(소사) | D83: 건강사정실습실 | E83: 공학강의동 | F83: K0605 | G83: 정기 | H83: 1 | I83: 1 | J83: 1 | K83: 1 | L83: 1 | M83: 1 | N83: 1 | O83: 1 | P83: 1
A84: 2 | B84: 공학,자연과학 | C84: 간호학과(소사) | D84: 시뮬레이션센터 | E84: 공학강의동 | F84: K0614-K0617 | G84: 정기 | H84: 1 | I84: 1 | J84: 1 | K84: 1 | L84: 1 | M84: 1 | N84: 1 | O84: 1 | P84: 1
A85: 3 | B85: 공학,자연과학 | C85: 간호학과(소사) | D85: 기초간호과학실습실 | E85: 공학강의동 | F85: K0606 | G85: 정기 | H85: 1 | I85: 1 | J85: 1 | K85: 1 | L85: 1 | M85: 1 | N85: 1 | O85: 1 | P85: 1
A86: 4 | B86: 공학,자연과학 | C86: 간호학과(소사) | D86: 기본간호학실습실 | E86: 공학강의동 | F86: K0602 | G86: 정기 | H86: 1 | I86: 1 | J86: 2 | K86: 1 | L86: 1 | M86: 1 | N86: 1 | O86: 2 | P86: 2
A87: 5 | B87: 공학,자연과학 | C87: 간호학과(소사) | D87: 자율실습실 | E87: 공학강의동 | F87: K0601 | G87: 정기 | H87: 1 | I87: 1 | J87: 2 | K87: 1 | L87: 1 | M87: 1 | N87: 1 | O87: 2 | P87: 2
A88: 6 | B88: 공학,자연과학 | C88: 공용실(소사) | D88: 제1컴퓨터실 | E88: 공학강의동 | F88: K0401 | G88: 정기 | H88: 1 | I88: 1 | J88: 1 | K88: 1 | L88: 1 | M88: 1 | N88: 1 | O88: 1 | P88: 1
A89: 7 | B89: 공학,자연과학 | C89: 공용실(소사) | D89: 제2컴퓨터실 | E89: 공학강의동 | F89: K0402 | G89: 정기 | H89: 1 | I89: 1 | J89: 1 | K89: 1 | L89: 1 | M89: 1 | N89: 1 | O89: 1 | P89: 1
A90: 8 | B90: 공학,자연과학 | C90: 공용실(소사) | D90: 제3컴퓨터실 | E90: 공학강의동 | F90: K0404 | G90: 정기 | H90: 1 | I90: 1 | J90: 1 | K90: 1 | L90: 1 | M90: 1 | N90: 1 | O90: 1 | P90: 1
A91: 9 | B91: 공학,자연과학 | C91: 공용실(소사) | D91: 제4컴퓨터실 | E91: 공학강의동 | F91: K0405 | G91: 정기 | H91: 1 | I91: 1 | J91: 1 | K91: 1 | L91: 1 | M91: 1 | N91: 1 | O91: 1 | P91: 1
A92: 10 | B92: 공학,자연과학 | C92: 공용실(소사) | D92: 제5컴퓨터실 | E92: 공학강의동 | F92: K0406 | G92: 정기 | H92: 1 | I92: 1 | J92: 1 | K92: 1 | L92: 1 | M92: 1 | N92: 1 | O92: 1 | P92: 1
A93: 11 | B93: 공학,자연과학 | C93: 공용실(소사) | D93: 제6컴퓨터실 | E93: 공학강의동 | F93: K0407 | G93: 정기 | H93: 1 | I93: 1 | J93: 1 | K93: 1 | L93: 1 | M93: 1 | N93: 1 | O93: 1 | P93: 1
A94: 12 | B94: 공학,자연과학 | C94: 공용실(소사) | D94: 제7컴퓨터실 | E94: 공학강의동 | F94: K0501 | G94: 정기 | H94: 1 | I94: 1 | J94: 1 | K94: 1 | L94: 1 | M94: 1 | N94: 1 | O94: 1 | P94: 1
A95: 13 | B95: 공학,자연과학 | C95: 공용실(소사) | D95: 제8컴퓨터실 | E95: 공학강의동 | F95: K0524 | G95: 정기 | H95: 1 | I95: 1 | J95: 1 | K95: 1 | L95: 1 | M95: 1 | N95: 1 | O95: 1 | P95: 1
A96: 14 | B96: 공학,자연과학 | C96: 공용실(소사) | D96: 제9컴퓨터실 | E96: 공학강의동 | F96: K0701 | G96: 정기 | H96: 1 | I96: 1 | J96: 1 | K96: 1 | L96: 1 | M96: 1 | N96: 1 | O96: 1 | P96: 1
A97: 46 | B97: 예체능 | C97: 디지털미디어디자인과 | D97: 디자인실습실6 | E97: 한길관 | F97: E0515 | G97: 정기 | H97: 1 | I97: 1 | J97: 1 | K97: 1 | L97: 1 | M97: 1 | N97: 1 | O97: 1 | P97: 1
A98: 47 | B98: 예체능 | C98: 디지털미디어디자인과 | D98: 컴퓨터교육실3 | E98: 한길관 | F98: E0510 | G98: 정기 | H98: 1 | I98: 1 | J98: 1 | K98: 1 | L98: 1 | M98: 1 | N98: 1 | O98: 1 | P98: 1
A99: 48 | B99: 예체능 | C99: 디지털미디어디자인과 | D99: 컴퓨터교육실2 | E99: 한길관 | F99: E0517 | G99: 정기 | H99: 1 | I99: 1 | J99: 1 | K99: 1 | L99: 1 | M99: 1 | N99: 1 | O99: 1 | P99: 1
A100: 49 | B100: 예체능 | C100: 디지털미디어디자인과 | D100: 컴퓨터교육실1 | E100: 한길관 | F100: E0520 | G100: 정기 | H100: 1 | I100: 1 | J100: 1 | K100: 1 | L100: 1 | M100: 1 | N100: 1 | O100: 1 | P100: 1
A101: 50 | B101: 예체능 | C101: 디지털미디어디자인과 | D101: 팀 세미나실 | E101: 한길관 | F101: E0511 | G101: 정기 | H101: 1 | I101: 1 | J101: 1 | K101: 1 | L101: 1 | M101: 1 | N101: 1 | O101: 1 | P101: 1
A102: 51 | B102: 예체능 | C102: 디지털미디어디자인과 | D102: 운송기기 크레이 모델링실 | E102: 한길관 | F102: EB1 | G102: 정기 | H102: 1 | I102: 2 | J102: 1 | K102: 1 | L102: 1 | M102: 1 | N102: 1 | O102: 1 | P102: 2
A103: 52 | B103: 예체능 | C103: 디지털미디어디자인과 | D103: 운송기기 크레이 모델링 준비실 | E103: 한길관 | F103: EB131 | G103: 정기 | H103: 1 | I103: 2 | J103: 1 | K103: 1 | L103: 1 | M103: 1 | N103: 2 | O103: 1 | P103: 2
A104: 53 | B104: 예체능 | C104: 디지털미디어디자인과 | D104: 컴퓨터교육실4 | E104: 한길관 | F104: E0523 | G104: 정기 | H104: 1 | I104: 1 | J104: 1 | K104: 1 | L104: 1 | M104: 1 | N104: 1 | O104: 1 | P104: 1
A105: 54 | B105: 예체능 | C105: 디지털미디어디자인과 | D105: 3D프린트가공실 | E105: 한길관 | F105: E0550 | G105: 정기 | H105: 1 | I105: 1 | J105: 1 | K105: 1 | L105: 1 | M105: 1 | N105: 1 | O105: 1 | P105: 1
A106: 55 | B106: 예체능 | C106: 디지털미디어디자인과 | D106: 디자인실습실4 | E106: 한길관 | F106: E0502 | G106: 정기 | H106: 1 | I106: 1 | J106: 1 | K106: 1 | L106: 1 | M106: 1 | N106: 1 | O106: 1 | P106: 1
A107: 56 | B107: 예체능 | C107: 디지털미디어디자인과 | D107: 디자인실습실5 | E107: 한길관 | F107: E0504 | G107: 정기 | H107: 1 | I107: 1 | J107: 1 | K107: 1 | L107: 1 | M107: 1 | N107: 1 | O107: 1 | P107: 1
A108: 57 | B108: 예체능 | C108: 디지털미디어디자인과 | D108: 디자인실습실3 | E108: 한길관 | F108: E0539 | G108: 정기 | H108: 2 | I108: 1 | J108: 1 | K108: 1 | L108: 1 | M108: 1 | N108: 1 | O108: 1 | P108: 2
A109: 58 | B109: 예체능 | C109: 디지털미디어디자인과 | D109: 디자인실습실2 | E109: 한길관 | F109: E0536 | G109: 정기 | H109: 1 | I109: 1 | J109: 1 | K109: 1 | L109: 1 | M109: 1 | N109: 1 | O109: 1 | P109: 1
A110: 59 | B110: 예체능 | C110: 디지털미디어디자인과 | D110: 디자인실습실1 | E110: 한길관 | F110: E0533 | G110: 정기 | H110: 1 | I110: 1 | J110: 1 | K110: 1 | L110: 1 | M110: 1 | N110: 1 | O110: 1 | P110: 1
A111: 60 | B111: 예체능 | C111: 디지털미디어디자인과 | D111: 4학년 전공연구실 | E111: 한길관 | F111: E0530 | G111: 정기 | H111: 1 | I111: 1 | J111: 1 | K111: 1 | L111: 1 | M111: 1 | N111: 1 | O111: 1 | P111: 1
A112: 133 | B112: 예체능 | C112: 뷰티융합비즈니스과 | D112: 뷰티융합비즈니스 훈련센터 | E112: 밀레니엄관 | F112: H0105 | G112: 정기 | H112: 1 | I112: 1 | J112: 1 | K112: 1 | L112: 1 | M112: 1 | N112: 1 | O112: 1 | P112: 1
A113: 134 | B113: 예체능 | C113: 뷰티케어과(뷰티전공) | D113: 스킨케어실 | E113: 밀레니엄관 | F113: H0401 | G113: 정기 | H113: 1 | I113: 1 | J113: 1 | K113: 1 | L113: 1 | M113: 1 | N113: 1 | O113: 1 | P113: 1
A114: 135 | B114: 예체능 | C114: 뷰티케어과(뷰티전공) | D114: 네일아트실 | E114: 밀레니엄관 | F114: H0405 | G114: 정기 | H114: 1 | I114: 1 | J114: 1 | K114: 1 | L114: 1 | M114: 1 | N114: 1 | O114: 1 | P114: 1
A115: 136 | B115: 예체능 | C115: 뷰티케어과(헤어전공) | D115: 메이크업아트실 | E115: 밀레니엄관 | F115: H0406 | G115: 정기 | H115: 1 | I115: 1 | J115: 1 | K115: 1 | L115: 1 | M115: 1 | N115: 1 | O115: 1 | P115: 1
A116: 137 | B116: 예체능 | C116: 뷰티케어과(헤어전공) | D116: 헤어디자인실 | E116: 밀레니엄관 | F116: H0407 | G116: 정기 | H116: 1 | I116: 1 | J116: 1 | K116: 1 | L116: 1 | M116: 1 | N116: 1 | O116: 1 | P116: 1
A117: 96 | B117: 예체능 | C117: 실내건축디자인과 | D117: 컴퓨터프레젠테이션실 | E117: 공학관 | F117: A0107 | G117: 정기 | H117: 2 | I117: 1 | J117: 1 | K117: 1 | L117: 1 | M117: 1 | N117: 1 | O117: 1 | P117: 2
A118: 97 | B118: 예체능 | C118: 실내건축디자인과 | D118: 전공스튜디오실 | E118: 공학관 | F118: A0301 | G118: 정기 | H118: 1 | I118: 1 | J118: 1 | K118: 1 | L118: 1 | M118: 1 | N118: 1 | O118: 1 | P118: 1
A119: 98 | B119: 예체능 | C119: 실내건축디자인과 | D119: 컴퓨터그래픽실 | E119: 공학관 | F119: A0302 | G119: 정기 | H119: 2 | I119: 1 | J119: 1 | K119: 1 | L119: 1 | M119: 1 | N119: 1 | O119: 1 | P119: 2
A120: 99 | B120: 예체능 | C120: 실내건축디자인과 | D120: 서버실 | E120: 공학관 | F120: A0302-1 | G120: 정기 | H120: 1 | I120: 1 | J120: 1 | K120: 1 | L120: 1 | M120: 1 | N120: 1 | O120: 1 | P120: 1
A121: 100 | B121: 예체능 | C121: 실내건축디자인과 | D121: 모형실습실 | E121: 공학관 | F121: AB103 | G121: 정기 | H121: 1 | I121: 1 | J121: 1 | K121: 1 | L121: 1 | M121: 1 | N121: 1 | O121: 1 | P121: 1
A122: 101 | B122: 예체능 | C122: 실내건축디자인과 | D122: 스튜디오05 | E122: 예지관 | F122: C0104 | G122: 정기 | H122: 1 | I122: 1 | J122: 1 | K122: 1 | L122: 1 | M122: 1 | N122: 1 | O122: 1 | P122: 1
A123: 102 | B123: 예체능 | C123: 실내건축디자인과 | D123: 스튜디오06 | E123: 예지관 | F123: C0104-1 | G123: 정기 | H123: 1 | I123: 1 | J123: 1 | K123: 1 | L123: 1 | M123: 1 | N123: 1 | O123: 1 | P123: 1
A124: 103 | B124: 예체능 | C124: 실내건축디자인과 | D124: 스튜디오07 | E124: 예지관 | F124: C0105 | G124: 정기 | H124: 2 | I124: 1 | J124: 1 | K124: 1 | L124: 1 | M124: 1 | N124: 1 | O124: 1 | P124: 2
A125: 104 | B125: 예체능 | C125: 실내건축디자인과 | D125: 스튜디오08 | E125: 예지관 | F125: C0105-1 | G125: 정기 | H125: 1 | I125: 1 | J125: 1 | K125: 1 | L125: 1 | M125: 1 | N125: 1 | O125: 1 | P125: 1
A126: 105 | B126: 예체능 | C126: 실내건축디자인과 | D126: 스튜디오01 | E126: 예지관 | F126: CB101-1 | G126: 정기 | H126: 2 | I126: 1 | J126: 1 | K126: 1 | L126: 1 | M126: 1 | N126: 1 | O126: 1 | P126: 2
A127: 106 | B127: 예체능 | C127: 실내건축디자인과 | D127: 스튜디오02 | E127: 예지관 | F127: CB102 | G127: 정기 | H127: 1 | I127: 1 | J127: 1 | K127: 2 | L127: 1 | M127: 1 | N127: 1 | O127: 1 | P127: 2
A128: 107 | B128: 예체능 | C128: 실내건축디자인과 | D128: 스튜디오03 | E128: 예지관 | F128: CB102-1 | G128: 정기 | H128: 1 | I128: 1 | J128: 1 | K128: 1 | L128: 1 | M128: 1 | N128: 1 | O128: 1 | P128: 1
A129: 108 | B129: 예체능 | C129: 실내건축디자인과 | D129: 스튜디오04 | E129: 예지관 | F129: CB103 | G129: 정기 | H129: 1 | I129: 1 | J129: 1 | K129: 1 | L129: 1 | M129: 1 | N129: 1 | O129: 1 | P129: 1
A130: 109 | B130: 예체능 | C130: 실내건축디자인과 | D130: 졸업준비 및 스튜디오 | E130: 예지관 | F130: CB104 | G130: 정기 | H130: 1 | I130: 1 | J130: 1 | K130: 1 | L130: 1 | M130: 1 | N130: 1 | O130: 1 | P130: 1
A131: 110 | B131: 예체능 | C131: 실내건축디자인과 | D131: 디자인1실 | E131: 예지관 | F131: CB101 | G131: 정기 | H131: 2 | I131: 1 | J131: 1 | K131: 2 | L131: 1 | M131: 1 | N131: 1 | O131: 1 | P131: 2
A132: 111 | B132: 예체능 | C132: 실내건축디자인과 | D132: 디자인3실 | E132: 예지관 | F132: CB105 | G132: 정기 | H132: 1 | I132: 1 | J132: 1 | K132: 2 | L132: 1 | M132: 1 | N132: 1 | O132: 1 | P132: 2
A133: 112 | B133: 예체능 | C133: 실내건축디자인과 | D133: 디자인2실 | E133: 예지관 | F133: CB107 | G133: 정기 | H133: 1 | I133: 1 | J133: 1 | K133: 1 | L133: 1 | M133: 1 | N133: 1 | O133: 1 | P133: 1
A134: 113 | B134: 예체능 | C134: 실내건축디자인과 | D134: 목공예실 | E134: 한길관 | F134: EB112 | G134: 정기 | H134: 1 | I134: 2 | J134: 1 | K134: 1 | L134: 1 | M134: 1 | N134: 2 | O134: 1 | P134: 2
A135: 114 | B135: 예체능 | C135: 실내건축디자인과 | D135: 목공구실 | E135: 한길관 | F135: EB129 | G135: 정기 | H135: 1 | I135: 2 | J135: 1 | K135: 1 | L135: 1 | M135: 1 | N135: 2 | O135: 1 | P135: 2
A136: 115 | B136: 예체능 | C136: 실내건축디자인과 | D136: 금속공예1실 | E136: 한길관 | F136: EB118 | G136: 정밀 | H136: 2 | I136: 2 | J136: 2 | K136: 2 | L136: 1 | M136: 1 | N136: 1 | O136: 1 | P136: 2
A137: 116 | B137: 예체능 | C137: 실내건축디자인과 | D137: 금속공예2실 | E137: 한길관 | F137: EB122 | G137: 정밀 | H137: 1 | I137: 2 | J137: 1 | K137: 1 | L137: 2 | M137: 1 | N137: 1 | O137: 1 | P137: 2
A138: 129 | B138: 예체능 | C138: 재활스포츠과 | D138: 실습실B | E138: 기념관,체육관 | F138: I0205 | G138: 정기 | H138: 1 | I138: 1 | J138: 1 | K138: 1 | L138: 1 | M138: 1 | N138: 1 | O138: 1 | P138: 1
A139: 130 | B139: 예체능 | C139: 재활스포츠과 | D139: 실습실A | E139: 기념관,체육관 | F139: I0201-1 | G139: 정기 | H139: 1 | I139: 1 | J139: 2 | K139: 1 | L139: 1 | M139: 1 | N139: 1 | O139: 1 | P139: 2
A140: 131 | B140: 예체능 | C140: 재활스포츠과 | D140: 댄스실 | E140: 기념관,체육관 | F140: I0101 | G140: 정기 | H140: 1 | I140: 1 | J140: 1 | K140: 1 | L140: 1 | M140: 1 | N140: 1 | O140: 1 | P140: 1
A141: 132 | B141: 예체능 | C141: 재활스포츠과 | D141: TRX실 | E141: 기념관,체육관 | F141: IB104 | G141: 정기 | H141: 1 | I141: 1 | J141: 1 | K141: 1 | L141: 1 | M141: 1 | N141: 1 | O141: 1 | P141: 1

Sheet 지적사항 집계표
A2: 2019년 부천대학교 연구실 정기안전점검 점검사항 집계표
A5: 연번 | B5: 구분 | C5: 학과명 | D5: 점검결과
D6: 일반안전 | E6: 산업위생 | F6: 전기안전 | G6: 소방안전 | H6: 화공안전 | I6: 가스안전 | J6: 기계안전 | K6: 생물안전 | L6: 계
A7: 1 | B7: 공학,자연과학 | C7: 건축과 | D7: =COUNTIFS('지적사항 및 개선방안(종합)'!$C$3:$C$208,$C7,'지적사항 및 개선방안(종합)'!$G$3:$G$208,D$6) -> 2 | E7: =COUNTIFS('지적사항 및 개선방안(종합)'!$C$3:$C$208,$C7,'지적사항 및 개선방안(종합)'!$G$3:$G$208,E$6) -> 0 | F7: =COUNTIFS('지적사항 및 개선방안(종합)'!$C$3:$C$208,$C7,'지적사항 및 개선방안(종합)'!$G$3:$G$208,F$6) -> 0 | G7: =COUNTIFS('지적사항 및 개선방안(종합)'!$C$3:$C$208,$C7,'지적사항 및 개선방안(종합)'!$G$3:$G$208,G$6) -> 4 | H7: =COUNTIFS('지적사항 및 개선방안(종합)'!$C$3:$C$208,$C7,'지적사항 및 개선방안(종합)'!$G$3:$G$208,H$6) -> 0 | I7: =COUNTIFS('지적사항 및 개선방안(종합)'!$C$3:$C$208,$C7,'지적사항 및 개선방안(종합)'!$G$3:$G$208,I$6) -> 0 | J7: =COUNTIFS('지적사항 및 개선방안(종합)'!$C$3:$C$208,$C7,'지적사항 및 개선방안(종합)'!$G$3:$G$208,J$6) -> 0 | K7: =COUNTIFS('지적사항 및 개선방안(종합)'!$C$3:$C$208,$C7,'지적사항 및 개선방안(종합)'!$G$3:$G$208,K$6) -> 0 | L7: =SUM(D7:K7) -> 6
A8: 6 | C8: 섬유패션비지니스과 | D8: =COUNTIFS('지적사항 및 개선방안(종합)'!$C$3:$C$208,$C8,'지적사항 및 개선방안(종합)'!$G$3:$G$208,D$6) -> 0 | E8: =COUNTIFS('지적사항 및 개선방안(종합)'!$C$3:$C$208,$C8,'지적사항 및 개선방안(종합)'!$G$3:$G$208,E$6) -> 1 | F8: =COUNTIFS('지적사항 및 개선방안(종합)'!$C$3:$C$208,$C8,'지적사항 및 개선방안(종합)'!$G$3:$G$208,F$6) -> 0 | G8: =COUNTIFS('지적사항 및 개선방안(종합)'!$C$3:$C$208,$C8,'지적사항 및 개선방안(종합)'!$G$3:$G$208,G$6) -> 2 | H8: =COUNTIFS('지적사항 및 개선방안(종합)'!$C$3:$C$208,$C8,'지적사항 및 개선방안(종합)'!$G$3:$G$208,H$6) -> 2 | I8: =COUNTIFS('지적사항 및 개선방안(종합)'!$C$3:$C$208,$C8,'지적사항 및 개선방안(종합)'!$G$3:$G$208,I$6) -> 0 | J8: =COUNTIFS('지적사항 및 개선방안(종합)'!$C$3:$C$208,$C8,'지적사항 및 개선방안(종합)'!$G$3:$G$208,J$6) -> 0 | K8: =COUNTIFS('지적사항 및 개선방안(종합)'!$C$3:$C$208,$C8,'지적사항 및 개선방안(종합)'!$G$3:$G$208,K$6) -> 0 | L8: =SUM(D8:K8) -> 5
A9: 7 | C9: 시험인증융합과(계약학과) | D9: =COUNTIFS('지적사항 및 개선방안(종합)'!$C$3:$C$208,$C9,'지적사항 및 개선방안(종합)'!$G$3:$G$208,D$6) -> 2 | E9: =COUNTIFS('지적사항 및 개선방안(종합)'!$C$3:$C$208,$C9,'지적사항 및 개선방안(종합)'!$G$3:$G$208,E$6) -> 0 | F9: =COUNTIFS('지적사항 및 개선방안(종합)'!$C$3:$C$208,$C9,'지적사항 및 개선방안(종합)'!$G$3:$G$208,F$6) -> 1 | G9: =COUNTIFS('지적사항 및 개선방안(종합)'!$C$3:$C$208,$C9,'지적사항 및 개선방안(종합)'!$G$3:$G$208,G$6) -> 0 | H9: =COUNTIFS('지적사항 및 개선방안(종합)'!$C$3:$C$208,$C9,'지적사항 및 개선방안(종합)'!$G$3:$G$208,H$6) -> 0 | I9: =COUNTIFS('지적사항 및 개선방안(종합)'!$C$3:$C$208,$C9,'지적사항 및 개선방안(종합)'!$G$3:$G$208,I$6) -> 0 | J9: =COUNTIFS('지적사항 및 개선방안(종합)'!$C$3:$C$208,$C9,'지적사항 및 개선방안(종합)'!$G$3:$G$208,J$6) -> 0 | K9: =COUNTIFS('지적사항 및 개선방안(종합)'!$C$3:$C$208,$C9,'지적사항 및 개선방안(종합)'!$G$3:$G$208,K$6) -> 0 | L9: 3
A10: 8 | C10: 식품영양과 | D10: =COUNTIFS('지적사항 및 개선방안(종합)'!$C$3:$C$208,$C10,'지적사항 및 개선방안(종합)'!$G$3:$G$208,D$6) -> 0 | E10: =COUNTIFS('지적사항 및 개선방안(종합)'!$C$3:$C$208,$C10,'지적사항 및 개선방안(종합)'!$G$3:$G$208,E$6) -> 4 | F10: =COUNTIFS('지적사항 및 개선방안(종합)'!$C$3:$C$208,$C10,'지적사항 및 개선방안(종합)'!$G$3:$G$208,F$6) -> 0 | G10: =COUNTIFS('지적사항 및 개선방안(종합)'!$C$3:$C$208,$C10,'지적사항 및 개선방안(종합)'!$G$3:$G$208,G$6) -> 0 | H10: =COUNTIFS('지적사항 및 개선방안(종합)'!$C$3:$C$208,$C10,'지적사항 및 개선방안(종합)'!$G$3:$G$208,H$6) -> 2 | I10: =COUNTIFS('지적사항 및 개선방안(종합)'!$C$3:$C$208,$C10,'지적사항 및 개선방안(종합)'!$G$3:$G$208,I$6) -> 0 | J10: =COUNTIFS('지적사항 및 개선방안(종합)'!$C$3:$C$208,$C10,'지적사항 및 개선방안(종합)'!$G$3:$G$208,J$6) -> 0 | K10: =COUNTIFS('지적사항 및 개선방안(종합)'!$C$3:$C$208,$C10,'지적사항 및 개선방안(종합)'!$G$3:$G$208,K$6) -> 0 | L10: 6
A11: 10 | C11: 영상&게임콘텐츠과 | D11: =COUNTIFS('지적사항 및 개선방안(종합)'!$C$3:$C$208,$C11,'지적사항 및 개선방안(종합)'!$G$3:$G$208,D$6) -> 0 | E11: =COUNTIFS('지적사항 및 개선방안(종합)'!$C$3:$C$208,$C11,'지적사항 및 개선방안(종합)'!$G$3:$G$208,E$6) -> 0 | F11: =COUNTIFS('지적사항 및 개선방안(종합)'!$C$3:$C$208,$C11,'지적사항 및 개선방안(종합)'!$G$3:$G$208,F$6) -> 1 | G11: =COUNTIFS('지적사항 및 개선방안(종합)'!$C$3:$C$208,$C11,'지적사항 및 개선방안(종합)'!$G$3:$G$208,G$6) -> 0 | H11: =COUNTIFS('지적사항 및 개선방안(종합)'!$C$3:$C$208,$C11,'지적사항 및 개선방안(종합)'!$G$3:$G$208,H$6) -> 0 | I11: =COUNTIFS('지적사항 및 개선방안(종합)'!$C$3:$C$208,$C11,'지적사항 및 개선방안(종합)'!$G$3:$G$208,I$6) -> 0 | J11: =COUNTIFS('지적사항 및 개선방안(종합)'!$C$3:$C$208,$C11,'지적사항 및 개선방안(종합)'!$G$3:$G$208,J$6) -> 0 | K11: =COUNTIFS('지적사항 및 개선방안(종합)'!$C$3:$C$208,$C11,'지적사항 및 개선방안(종합)'!$G$3:$G$208,K$6) -> 0 | L11: 1
A12: 12 | C12: 전기과 | D12: =COUNTIFS('지적사항 및 개선방안(종합)'!$C$3:$C$208,$C12,'지적사항 및 개선방안(종합)'!$G$3:$G$208,D$6) -> 0 | E12: =COUNTIFS('지적사항 및 개선방안(종합)'!$C$3:$C$208,$C12,'지적사항 및 개선방안(종합)'!$G$3:$G$208,E$6) -> 0 | F12: =COUNTIFS('지적사항 및 개선방안(종합)'!$C$3:$C$208,$C12,'지적사항 및 개선방안(종합)'!$G$3:$G$208,F$6) -> 0 | G12: =COUNTIFS('지적사항 및 개선방안(종합)'!$C$3:$C$208,$C12,'지적사항 및 개선방안(종합)'!$G$3:$G$208,G$6) -> 0 | H12: =COUNTIFS('지적사항 및 개선방안(종합)'!$C$3:$C$208,$C12,'지적사항 및 개선방안(종합)'!$G$3:$G$208,H$6) -> 0 | I12: =COUNTIFS('지적사항 및 개선방안(종합)'!$C$3:$C$208,$C12,'지적사항 및 개선방안(종합)'!$G$3:$G$208,I$6) -> 0 | J12: =COUNTIFS('지적사항 및 개선방안(종합)'!$C$3:$C$208,$C12,'지적사항 및 개선방안(종합)'!$G$3:$G$208,J$6) -> 0 | K12: =COUNTIFS('지적사항 및 개선방안(종합)'!$C$3:$C$208,$C12,'지적사항 및 개선방안(종합)'!$G$3:$G$208,K$6) -> 0 | L12: 0
A13: 13 | C13: 전자과 | D13: =COUNTIFS('지적사항 및 개선방안(종합)'!$C$3:$C$208,$C13,'지적사항 및 개선방안(종합)'!$G$3:$G$208,D$6) -> 0 | E13: =COUNTIFS('지적사항 및 개선방안(종합)'!$C$3:$C$208,$C13,'지적사항 및 개선방안(종합)'!$G$3:$G$208,E$6) -> 1 | F13: =COUNTIFS('지적사항 및 개선방안(종합)'!$C$3:$C$208,$C13,'지적사항 및 개선방안(종합)'!$G$3:$G$208,F$6) -> 4 | G13: =COUNTIFS('지적사항 및 개선방안(종합)'!$C$3:$C$208,$C13,'지적사항 및 개선방안(종합)'!$G$3:$G$208,G$6) -> 3 | H13: =COUNTIFS('지적사항 및 개선방안(종합)'!$C$3:$C$208,$C13,'지적사항 및 개선방안(종합)'!$G$3:$G$208,H$6) -> 1 | I13: =COUNTIFS('지적사항 및 개선방안(종합)'!$C$3:$C$208,$C13,'지적사항 및 개선방안(종합)'!$G$3:$G$208,I$6) -> 0 | J13: =COUNTIFS('지적사항 및 개선방안(종합)'!$C$3:$C$208,$C13,'지적사항 및 개선방안(종합)'!$G$3:$G$208,J$6) -> 1 | K13: =COUNTIFS('지적사항 및 개선방안(종합)'!$C$3:$C$208,$C13,'지적사항 및 개선방안(종합)'!$G$3:$G$208,K$6) -> 0 | L13: 10
A14: 14 | C14: 정보통신과 | D14: =COUNTIFS('지적사항 및 개선방안(종합)'!$C$3:$C$208,$C14,'지적사항 및 개선방안(종합)'!$G$3:$G$208,D$6) -> 2 | E14: =COUNTIFS('지적사항 및 개선방안(종합)'!$C$3:$C$208,$C14,'지적사항 및 개선방안(종합)'!$G$3:$G$208,E$6) -> 0 | F14: =COUNTIFS('지적사항 및 개선방안(종합)'!$C$3:$C$208,$C14,'지적사항 및 개선방안(종합)'!$G$3:$G$208,F$6) -> 2 | G14: =COUNTIFS('지적사항 및 개선방안(종합)'!$C$3:$C$208,$C14,'지적사항 및 개선방안(종합)'!$G$3:$G$208,G$6) -> 0 | H14: =COUNTIFS('지적사항 및 개선방안(종합)'!$C$3:$C$208,$C14,'지적사항 및 개선방안(종합)'!$G$3:$G$208,H$6) -> 0 | I14: =COUNTIFS('지적사항 및 개선방안(종합)'!$C$3:$C$208,$C14,'지적사항 및 개선방안(종합)'!$G$3:$G$208,I$6) -> 0 | J14: =COUNTIFS('지적사항 및 개선방안(종합)'!$C$3:$C$208,$C14,'지적사항 및 개선방안(종합)'!$G$3:$G$208,J$6) -> 0 | K14: =COUNTIFS('지적사항 및 개선방안(종합)'!$C$3:$C$208,$C14,'지적사항 및 개선방안(종합)'!$G$3:$G$208,K$6) -> 0 | L14: 4
A15: 15 | C15: 지능로봇과 | D15: =COUNTIFS('지적사항 및 개선방안(종합)'!$C$3:$C$208,$C15,'지적사항 및 개선방안(종합)'!$G$3:$G$208,D$6) -> 0 | E15: =COUNTIFS('지적사항 및 개선방안(종합)'!$C$3:$C$208,$C15,'지적사항 및 개선방안(종합)'!$G$3:$G$208,E$6) -> 1 | F15: =COUNTIFS('지적사항 및 개선방안(종합)'!$C$3:$C$208,$C15,'지적사항 및 개선방안(종합)'!$G$3:$G$208,F$6) -> 0 | G15: =COUNTIFS('지적사항 및 개선방안(종합)'!$C$3:$C$208,$C15,'지적사항 및 개선방안(종합)'!$G$3:$G$208,G$6) -> 0 | H15: =COUNTIFS('지적사항 및 개선방안(종합)'!$C$3:$C$208,$C15,'지적사항 및 개선방안(종합)'!$G$3:$G$208,H$6) -> 1 | I15: =COUNTIFS('지적사항 및 개선방안(종합)'!$C$3:$C$208,$C15,'지적사항 및 개선방안(종합)'!$G$3:$G$208,I$6) -> 0 | J15: =COUNTIFS('지적사항 및 개선방안(종합)'!$C$3:$C$208,$C15,'지적사항 및 개선방안(종합)'!$G$3:$G$208,J$6) -> 2 | K15: =COUNTIFS('지적사항 및 개선방안(종합)'!$C$3:$C$208,$C15,'지적사항 및 개선방안(종합)'!$G$3:$G$208,K$6) -> 0 | L15: 4
A16: 16 | C16: 토목과 | D16: =COUNTIFS('지적사항 및 개선방안(종합)'!$C$3:$C$208,$C16,'지적사항 및 개선방안(종합)'!$G$3:$G$208,D$6) -> 4 | E16: =COUNTIFS('지적사항 및 개선방안(종합)'!$C$3:$C$208,$C16,'지적사항 및 개선방안(종합)'!$G$3:$G$208,E$6) -> 0 | F16: =COUNTIFS('지적사항 및 개선방안(종합)'!$C$3:$C$208,$C16,'지적사항 및 개선방안(종합)'!$G$3:$G$208,F$6) -> 1 | G16: =COUNTIFS('지적사항 및 개선방안(종합)'!$C$3:$C$208,$C16,'지적사항 및 개선방안(종합)'!$G$3:$G$208,G$6) -> 0 | H16: =COUNTIFS('지적사항 및 개선방안(종합)'!$C$3:$C$208,$C16,'지적사항 및 개선방안(종합)'!$G$3:$G$208,H$6) -> 0 | I16: =COUNTIFS('지적사항 및 개선방안(종합)'!$C$3:$C$208,$C16,'지적사항 및 개선방안(종합)'!$G$3:$G$208,I$6) -> 0 | J16: =COUNTIFS('지적사항 및 개선방안(종합)'!$C$3:$C$208,$C16,'지적사항 및 개선방안(종합)'!$G$3:$G$208,J$6) -> 0 | K16: =COUNTIFS('지적사항 및 개선방안(종합)'!$C$3:$C$208,$C16,'지적사항 및 개선방안(종합)'!$G$3:$G$208,K$6) -> 0 | L16: 5
A17: 17 | C17: 호텔외식조리과 | D17: =COUNTIFS('지적사항 및 개선방안(종합)'!$C$3:$C$208,$C17,'지적사항 및 개선방안(종합)'!$G$3:$G$208,D$6) -> 0 | E17: =COUNTIFS('지적사항 및 개선방안(종합)'!$C$3:$C$208,$C17,'지적사항 및 개선방안(종합)'!$G$3:$G$208,E$6) -> 0 | F17: =COUNTIFS('지적사항 및 개선방안(종합)'!$C$3:$C$208,$C17,'지적사항 및 개선방안(종합)'!$G$3:$G$208,F$6) -> 4 | G17: =COUNTIFS('지적사항 및 개선방안(종합)'!$C$3:$C$208,$C17,'지적사항 및 개선방안(종합)'!$G$3:$G$208,G$6) -> 1 | H17: =COUNTIFS('지적사항 및 개선방안(종합)'!$C$3:$C$208,$C17,'지적사항 및 개선방안(종합)'!$G$3:$G$208,H$6) -> 0 | I17: =COUNTIFS('지적사항 및 개선방안(종합)'!$C$3:$C$208,$C17,'지적사항 및 개선방안(종합)'!$G$3:$G$208,I$6) -> 0 | J17: =COUNTIFS('지적사항 및 개선방안(종합)'!$C$3:$C$208,$C17,'지적사항 및 개선방안(종합)'!$G$3:$G$208,J$6) -> 0 | K17: =COUNTIFS('지적사항 및 개선방안(종합)'!$C$3:$C$208,$C17,'지적사항 및 개선방안(종합)'!$G$3:$G$208,K$6) -> 0 | L17: 5
A18: 18 | C18: 간호학과(소사) | D18: =COUNTIFS('지적사항 및 개선방안(종합)'!$C$3:$C$208,$C18,'지적사항 및 개선방안(종합)'!$G$3:$G$208,D$6) -> 0 | E18: =COUNTIFS('지적사항 및 개선방안(종합)'!$C$3:$C$208,$C18,'지적사항 및 개선방안(종합)'!$G$3:$G$208,E$6) -> 0 | F18: =COUNTIFS('지적사항 및 개선방안(종합)'!$C$3:$C$208,$C18,'지적사항 및 개선방안(종합)'!$G$3:$G$208,F$6) -> 2 | G18: =COUNTIFS('지적사항 및 개선방안(종합)'!$C$3:$C$208,$C18,'지적사항 및 개선방안(종합)'!$G$3:$G$208,G$6) -> 0 | H18: =COUNTIFS('지적사항 및 개선방안(종합)'!$C$3:$C$208,$C18,'지적사항 및 개선방안(종합)'!$G$3:$G$208,H$6) -> 0 | I18: =COUNTIFS('지적사항 및 개선방안(종합)'!$C$3:$C$208,$C18,'지적사항 및 개선방안(종합)'!$G$3:$G$208,I$6) -> 0 | J18: =COUNTIFS('지적사항 및 개선방안(종합)'!$C$3:$C$208,$C18,'지적사항 및 개선방안(종합)'!$G$3:$G$208,J$6) -> 0 | K18: =COUNTIFS('지적사항 및 개선방안(종합)'!$C$3:$C$208,$C18,'지적사항 및 개선방안(종합)'!$G$3:$G$208,K$6) -> 2 | L18: 4
A19: 19 | C19: 공용실(소사) | D19: =COUNTIFS('지적사항 및 개선방안(종합)'!$C$3:$C$208,$C19,'지적사항 및 개선방안(종합)'!$G$3:$G$208,D$6) -> 0 | E19: =COUNTIFS('지적사항 및 개선방안(종합)'!$C$3:$C$208,$C19,'지적사항 및 개선방안(종합)'!$G$3:$G$208,E$6) -> 0 | F19: =COUNTIFS('지적사항 및 개선방안(종합)'!$C$3:$C$208,$C19,'지적사항 및 개선방안(종합)'!$G$3:$G$208,F$6) -> 0 | G19: =COUNTIFS('지적사항 및 개선방안(종합)'!$C$3:$C$208,$C19,'지적사항 및 개선방안(종합)'!$G$3:$G$208,G$6) -> 0 | H19: =COUNTIFS('지적사항 및 개선방안(종합)'!$C$3:$C$208,$C19,'지적사항 및 개선방안(종합)'!$G$3:$G$208,H$6) -> 0 | I19: =COUNTIFS('지적사항 및 개선방안(종합)'!$C$3:$C$208,$C19,'지적사항 및 개선방안(종합)'!$G$3:$G$208,I$6) -> 0 | J19: =COUNTIFS('지적사항 및 개선방안(종합)'!$C$3:$C$208,$C19,'지적사항 및 개선방안(종합)'!$G$3:$G$208,J$6) -> 0 | K19: =COUNTIFS('지적사항 및 개선방안(종합)'!$C$3:$C$208,$C19,'지적사항 및 개선방안(종합)'!$G$3:$G$208,K$6) -> 0 | L19: 0
A20: 계 | D20: =SUM(D7:D19) -> 10 | E20: =SUM(E7:E19) -> 7 | F20: 15 | G20: 10 | H20: 6 | I20: 0 | J20: 3 | K20: 2 | L20: 53
A21: 백분율 | D21: =D20/L20 -> 0.1886792453 | E21: =E20/L20 -> 0.1320754717 | F21: =F20/L20 -> 0.2830188679 | G21: =G20/L20 -> 0.1886792453 | H21: =H20/L20 -> 0.1132075472 | I21: =I20/L20 -> 0 | J21: =J20/L20 -> 0.05660377358 | K21: =K20/L20 -> 0.03773584906 | L21: =SUM(D21:K21) -> 1
A22: 2 | B22: 예체능 | C22: 디지털미디어디자인과 | D22: =COUNTIFS('지적사항 및 개선방안(종합)'!$C$3:$C$208,$C22,'지적사항 및 개선방안(종합)'!$G$3:$G$208,D$6) -> 2 | E22: =COUNTIFS('지적사항 및 개선방안(종합)'!$C$3:$C$208,$C22,'지적사항 및 개선방안(종합)'!$G$3:$G$208,E$6) -> 3 | F22: =COUNTIFS('지적사항 및 개선방안(종합)'!$C$3:$C$208,$C22,'지적사항 및 개선방안(종합)'!$G$3:$G$208,F$6) -> 0 | G22: =COUNTIFS('지적사항 및 개선방안(종합)'!$C$3:$C$208,$C22,'지적사항 및 개선방안(종합)'!$G$3:$G$208,G$6) -> 0 | H22: =COUNTIFS('지적사항 및 개선방안(종합)'!$C$3:$C$208,$C22,'지적사항 및 개선방안(종합)'!$G$3:$G$208,H$6) -> 0 | I22: =COUNTIFS('지적사항 및 개선방안(종합)'!$C$3:$C$208,$C22,'지적사항 및 개선방안(종합)'!$G$3:$G$208,I$6) -> 0 | J22: =COUNTIFS('지적사항 및 개선방안(종합)'!$C$3:$C$208,$C22,'지적사항 및 개선방안(종합)'!$G$3:$G$208,J$6) -> 2 | K22: =COUNTIFS('지적사항 및 개선방안(종합)'!$C$3:$C$208,$C22,'지적사항 및 개선방안(종합)'!$G$3:$G$208,K$6) -> 0 | L22: 7
A23: 3 | C23: 뷰티융합비즈니스과 | D23: =COUNTIFS('지적사항 및 개선방안(종합)'!$C$3:$C$208,$C23,'지적사항 및 개선방안(종합)'!$G$3:$G$208,D$6) -> 0 | E23: =COUNTIFS('지적사항 및 개선방안(종합)'!$C$3:$C$208,$C23,'지적사항 및 개선방안(종합)'!$G$3:$G$208,E$6) -> 0 | F23: =COUNTIFS('지적사항 및 개선방안(종합)'!$C$3:$C$208,$C23,'지적사항 및 개선방안(종합)'!$G$3:$G$208,F$6) -> 0 | G23: =COUNTIFS('지적사항 및 개선방안(종합)'!$C$3:$C$208,$C23,'지적사항 및 개선방안(종합)'!$G$3:$G$208,G$6) -> 0 | H23: =COUNTIFS('지적사항 및 개선방안(종합)'!$C$3:$C$208,$C23,'지적사항 및 개선방안(종합)'!$G$3:$G$208,H$6) -> 0 | I23: =COUNTIFS('지적사항 및 개선방안(종합)'!$C$3:$C$208,$C23,'지적사항 및 개선방안(종합)'!$G$3:$G$208,I$6) -> 0 | J23: =COUNTIFS('지적사항 및 개선방안(종합)'!$C$3:$C$208,$C23,'지적사항 및 개선방안(종합)'!$G$3:$G$208,J$6) -> 0 | K23: =COUNTIFS('지적사항 및 개선방안(종합)'!$C$3:$C$208,$C23,'지적사항 및 개선방안(종합)'!$G$3:$G$208,K$6) -> 0 | L23: 0
A24: 4 | C24: 뷰티케어과(뷰티전공) | D24: =COUNTIFS('지적사항 및 개선방안(종합)'!$C$3:$C$208,$C24,'지적사항 및 개선방안(종합)'!$G$3:$G$208,D$6) -> 0 | E24: =COUNTIFS('지적사항 및 개선방안(종합)'!$C$3:$C$208,$C24,'지적사항 및 개선방안(종합)'!$G$3:$G$208,E$6) -> 0 | F24: =COUNTIFS('지적사항 및 개선방안(종합)'!$C$3:$C$208,$C24,'지적사항 및 개선방안(종합)'!$G$3:$G$208,F$6) -> 0 | G24: =COUNTIFS('지적사항 및 개선방안(종합)'!$C$3:$C$208,$C24,'지적사항 및 개선방안(종합)'!$G$3:$G$208,G$6) -> 0 | H24: =COUNTIFS('지적사항 및 개선방안(종합)'!$C$3:$C$208,$C24,'지적사항 및 개선방안(종합)'!$G$3:$G$208,H$6) -> 0 | I24: =COUNTIFS('지적사항 및 개선방안(종합)'!$C$3:$C$208,$C24,'지적사항 및 개선방안(종합)'!$G$3:$G$208,I$6) -> 0 | J24: =COUNTIFS('지적사항 및 개선방안(종합)'!$C$3:$C$208,$C24,'지적사항 및 개선방안(종합)'!$G$3:$G$208,J$6) -> 0 | K24: =COUNTIFS('지적사항 및 개선방안(종합)'!$C$3:$C$208,$C24,'지적사항 및 개선방안(종합)'!$G$3:$G$208,K$6) -> 0 | L24: 0
A25: 5 | C25: 뷰티케어과(헤어전공) | D25: =COUNTIFS('지적사항 및 개선방안(종합)'!$C$3:$C$208,$C25,'지적사항 및 개선방안(종합)'!$G$3:$G$208,D$6) -> 0 | E25: =COUNTIFS('지적사항 및 개선방안(종합)'!$C$3:$C$208,$C25,'지적사항 및 개선방안(종합)'!$G$3:$G$208,E$6) -> 0 | F25: =COUNTIFS('지적사항 및 개선방안(종합)'!$C$3:$C$208,$C25,'지적사항 및 개선방안(종합)'!$G$3:$G$208,F$6) -> 0 | G25: =COUNTIFS('지적사항 및 개선방안(종합)'!$C$3:$C$208,$C25,'지적사항 및 개선방안(종합)'!$G$3:$G$208,G$6) -> 0 | H25: =COUNTIFS('지적사항 및 개선방안(종합)'!$C$3:$C$208,$C25,'지적사항 및 개선방안(종합)'!$G$3:$G$208,H$6) -> 0 | I25: =COUNTIFS('지적사항 및 개선방안(종합)'!$C$3:$C$208,$C25,'지적사항 및 개선방안(종합)'!$G$3:$G$208,I$6) -> 0 | J25: =COUNTIFS('지적사항 및 개선방안(종합)'!$C$3:$C$208,$C25,'지적사항 및 개선방안(종합)'!$G$3:$G$208,J$6) -> 0 | K25: =COUNTIFS('지적사항 및 개선방안(종합)'!$C$3:$C$208,$C25,'지적사항 및 개선방안(종합)'!$G$3:$G$208,K$6) -> 0 | L25: 0
A26: 9 | C26: 실내건축디자인과 | D26: =COUNTIFS('지적사항 및 개선방안(종합)'!$C$3:$C$208,$C26,'지적사항 및 개선방안(종합)'!$G$3:$G$208,D$6) -> 7 | E26: =COUNTIFS('지적사항 및 개선방안(종합)'!$C$3:$C$208,$C26,'지적사항 및 개선방안(종합)'!$G$3:$G$208,E$6) -> 5 | F26: =COUNTIFS('지적사항 및 개선방안(종합)'!$C$3:$C$208,$C26,'지적사항 및 개선방안(종합)'!$G$3:$G$208,F$6) -> 1 | G26: =COUNTIFS('지적사항 및 개선방안(종합)'!$C$3:$C$208,$C26,'지적사항 및 개선방안(종합)'!$G$3:$G$208,G$6) -> 4 | H26: =COUNTIFS('지적사항 및 개선방안(종합)'!$C$3:$C$208,$C26,'지적사항 및 개선방안(종합)'!$G$3:$G$208,H$6) -> 2 | I26: =COUNTIFS('지적사항 및 개선방안(종합)'!$C$3:$C$208,$C26,'지적사항 및 개선방안(종합)'!$G$3:$G$208,I$6) -> 0 | J26: =COUNTIFS('지적사항 및 개선방안(종합)'!$C$3:$C$208,$C26,'지적사항 및 개선방안(종합)'!$G$3:$G$208,J$6) -> 4 | K26: =COUNTIFS('지적사항 및 개선방안(종합)'!$C$3:$C$208,$C26,'지적사항 및 개선방안(종합)'!$G$3:$G$208,K$6) -> 0 | L26: 23
A27: 11 | C27: 재활스포츠과 | D27: =COUNTIFS('지적사항 및 개선방안(종합)'!$C$3:$C$208,$C27,'지적사항 및 개선방안(종합)'!$G$3:$G$208,D$6) -> 0 | E27: =COUNTIFS('지적사항 및 개선방안(종합)'!$C$3:$C$208,$C27,'지적사항 및 개선방안(종합)'!$G$3:$G$208,E$6) -> 0 | F27: =COUNTIFS('지적사항 및 개선방안(종합)'!$C$3:$C$208,$C27,'지적사항 및 개선방안(종합)'!$G$3:$G$208,F$6) -> 1 | G27: =COUNTIFS('지적사항 및 개선방안(종합)'!$C$3:$C$208,$C27,'지적사항 및 개선방안(종합)'!$G$3:$G$208,G$6) -> 0 | H27: =COUNTIFS('지적사항 및 개선방안(종합)'!$C$3:$C$208,$C27,'지적사항 및 개선방안(종합)'!$G$3:$G$208,H$6) -> 0 | I27: =COUNTIFS('지적사항 및 개선방안(종합)'!$C$3:$C$208,$C27,'지적사항 및 개선방안(종합)'!$G$3:$G$208,I$6) -> 0 | J27: =COUNTIFS('지적사항 및 개선방안(종합)'!$C$3:$C$208,$C27,'지적사항 및 개선방안(종합)'!$G$3:$G$208,J$6) -> 0 | K27: =COUNTIFS('지적사항 및 개선방안(종합)'!$C$3:$C$208,$C27,'지적사항 및 개선방안(종합)'!$G$3:$G$208,K$6) -> 0 | L27: 1
A28: 계 | D28: =SUM(D22:D27) -> 9 | E28: =SUM(E22:E27) -> 8 | F28: 2 | G28: 4 | H28: 2 | I28: 0 | J28: 6 | K28: 0 | L28: 31
A29: 백분율 | D29: =D28/L28 -> 0.2903225806 | E29: =E28/L28 -> 0.2580645161 | F29: =F28/L28 -> 0.06451612903 | G29: =G28/L28 -> 0.1290322581 | H29: =H28/L28 -> 0.06451612903 | I29: =I28/L28 -> 0 | J29: =J28/L28 -> 0.1935483871 | K29: =K28/L28 -> 0 | L29: =SUM(D29:K29) -> 1
C30: 0 | D30: 0 | E30: 0 | F30: 0 | G30: 0 | H30: 0 | I30: 0
A31: 계 | D31: =SUM(D20+D28) -> 19 | E31: =SUM(E20+E28) -> 15 | F31: 17 | G31: 14 | H31: 8 | I31: 0 | J31: 9 | K31: =SUM(K20+K28) -> 2 | L31: 84
A32: 백분율 | D32: =D31/$L31 -> 0.2261904762 | E32: =E31/$L31 -> 0.1785714286 | F32: 0.2023809524 | G32: 0.1666666667 | H32: 0.09523809524 | I32: 0 | J32: 0.1071428571 | K32: 0.02380952381 | L32: 1

Sheet 지적사항 및 개선방안(종합)
A1: 2019년 부천대학교 연구실 정기안전점검 점검사항 및 개선방안
A2: NO. | B2: 구분 | C2: 학과명 | D2: 연구실명 | E2: 건물명 | F2: 호실 | G2: 점검분야 | H2: 점검사항 | I2: 개선방안 | J2: 비고
A3: 86 | B3: 공학,자연과학 | C3: 건축과 | D3: 환경연구실 | E3: 공학관 | F3: AB107
A4: 87 | B4: 공학,자연과학 | C4: 건축과 | D4: 컴퓨터그래픽실 | E4: 공학관 | F4: A0403 | G4: 소방안전 | H4: 소화기 위치 표식 미부착 | I4: 소화기 위치표식 부착 및 눈에 잘 띄는 위치에 비치
A5: 88 | B5: 공학,자연과학 | C5: 건축과 | D5: 프레젠테이션실 | E5: 공학관 | F5: A0404
A6: 89 | B6: 공학,자연과학 | C6: 건축과 | D6: 첨단강의실1 | E6: 공학관 | F6: A0502 | G6: 소방안전 | H6: 소화기 미비치 | I6: 소화기는 눈에 잘 띄는 위치에 비치 및 표식 부착 필요
A7: 90 | B7: 공학,자연과학 | C7: 건축과 | D7: 첨단강의실2 | E7: 공학관 | F7: A0503
A8: 91 | B8: 공학,자연과학 | C8: 건축과 | D8: 첨단강의실3 | E8: 공학관 | F8: A0507 | G8: 소방안전 | H8: 소화기 미비치 | I8: 소화기는 눈에 잘 띄는 위치에 비치 및 표식 부착 필요
A9: 92 | B9: 공학,자연과학 | C9: 건축과 | D9: 설계STUDIO-A | E9: 공학관 | F9: A0508 | G9: 소방안전 | H9: 소화기 위치 표식 미부착 | I9: 소화기 위치표식 부착 및 눈에 잘 띄는 위치에 비치
A10: 93 | B10: 공학,자연과학 | C10: 건축과 | D10: 설계STUDIO-B | E10: 공학관 | F10: A0509
A11: 94 | B11: 공학,자연과학 | C11: 건축과 | D11: 모형제작실 | E11: 공학관 | F11: A0602 | G11: 일반안전 | H11: 실험 기자재와 실험재료의 이상 유무와 보호장비의 관리 실태에 대한 일상점검 미실시 | I11: 각 연구실별 상황에 맞는 일상점검 체크리스트 작성 후 그 결과를 기록·유지 관리
A12: 94 | B12: 공학,자연과학 | C12: 건축과 | D12: 모형제작실 | E12: 공학관 | F12: A0602 | G12: 일반안전 | H12: 누수, 습기 발생, 먼지, 곰팡이 등 발생하여 연구 환경 저해 | I12: 지속적인 환기 및 청결한 청소 상태 유지 필요
A13: 95 | B13: 공학,자연과학 | C13: 건축과 | D13: 건축CAD실 | E13: 예지관 | F13: C0106
A14: 37 | B14: 공학,자연과학 | C14: 섬유패션비지니스과 | D14: 섬유패션CAD실 | E14: 한길관 | F14: E0401
A15: 38 | B15: 공학,자연과학 | C15: 섬유패션비지니스과 | D15: 가발공정실 | E15: 한길관 | F15: E0403
A16: 39 | B16: 공학,자연과학 | C16: 섬유패션비지니스과 | D16: 섬유패션실습실(Ⅱ) | E16: 한길관 | F16: E0406 | G16: 소방안전 | H16: 소화기 미비치 | I16: 소화기는 눈에 잘 띄는 위치에 비치 및 표식 부착 필요
A17: 40 | B17: 공학,자연과학 | C17: 섬유패션비지니스과 | D17: 섬유패션실습실(Ⅲ) | E17: 한길관 | F17: E0409 | G17: 소방안전 | H17: 소화기 미비치 | I17: 소화기는 눈에 잘 띄는 위치에 비치 및 표식 부착 필요
A18: 41 | B18: 공학,자연과학 | C18: 섬유패션비지니스과 | D18: 실습재료실 | E18: 한길관 | F18: E0101 | G18: 산업위생 | H18: 보유시약에 대한 GHS안전보건표지 미부착 및 부착미흡 | I18: 보유시약에 대한 GHS안전보건표지를 시약장에 부착
A19: 42 | B19: 공학,자연과학 | C19: 섬유패션비지니스과 | D19: 섬유패션실습실(Ⅰ) | E19: 한길관 | F19: E0102 | G19: 화공안전 | H19: 라벨링이 안되어 있어 시료, 폐액, 시약인지 확인 불가능함 | I19: 라벨링을 하여 미연에 사고를 방지하기 바람(증류수일 경우에도 라벨링 기입을 권장함)
A20: 42 | B20: 공학,자연과학 | C20: 섬유패션비지니스과 | D20: 섬유패션실습실(Ⅰ) | E20: 한길관 | F20: E0102 | G20: 화공안전 | H20: 시약특성별 보관위치 미흡 | I20: 유해인자 취급기준에 적합하게 관리하여야 하고 성상별로 구분하여 적합한 성능을 갖춘 전용 시약장에 보관하여야 함(부식물질보관장 필요)
A21: 43 | B21: 공학,자연과학 | C21: 섬유패션비지니스과 | D21: NCS편직실습실 | E21: 한길관 | F21: E0428
A22: 44 | B22: 공학,자연과학 | C22: 섬유패션비지니스과 | D22: 섬유패션 전자상거래실 | E22: 한길관 | F22: E0230
A23: 45 | B23: 공학,자연과학 | C23: 섬유패션비지니스과 | D23: 컴퓨터니트실험실 | E23: 한길관 | F23: EB105
A24: 128 | B24: 공학,자연과학 | C24: 시험인증융합과(계약학과) | D24: 3실습실 | E24: 꿈집 | F24: B0904 | G24: 일반안전 | H24: 실험 기자재와 실험재료의 이상 유무와 보호장비의 관리 실태에 대한 일상점검 미실시 | I24: 각 연구실별 상황에 맞는 일상점검 체크리스트 작성 후 그 결과를 기록·유지 관리
A25: 128 | B25: 공학,자연과학 | C25: 시험인증융합과(계약학과) | D25: 3실습실 | E25: 꿈집 | F25: B0904 | G25: 일반안전 | H25: 안전관리규정, 비상연락망, 안전수칙 연구실 내 미비치 | I25: 연구실내 게시 또는 비치
A26: 128 | B26: 공학,자연과학 | C26: 시험인증융합과(계약학과) | D26: 3실습실 | E26: 꿈집 | F26: B0904 | G26: 전기안전 | H26: 비접지형 멀티탭·콘센트 사용 | I26: 접지형 콘센트·멀티탭 교체 사용
A27: 61 | B27: 공학,자연과학 | C27: 식품영양과 | D27: 종합실험실 | E27: 예지관 | F27: C0101 | G27: 산업위생 | H27: 보유시약에 대한 GHS안전보건표지 미부착 및 부착미흡 | I27: 보유시약에 대한 GHS안전보건표지를 시약장에 부착
A28: 61 | B28: 공학,자연과학 | C28: 식품영양과 | D28: 종합실험실 | E28: 예지관 | F28: C0101 | G28: 산업위생 | H28: 연구실내에 구급함이 비치되어 있으나 구급약품의 사용기간이 지남 | I28: 사용기간이 지난 구급약품은 교체하여 비치
A29: 61 | B29: 공학,자연과학 | C29: 식품영양과 | D29: 종합실험실 | E29: 예지관 | F29: C0101 | G29: 산업위생 | H29: 농축기기에 대한 암후드 미설치 | I29: 암후드 설치 및 환기설비 개선
A30: 61 | B30: 공학,자연과학 | C30: 식품영양과 | D30: 종합실험실 | E30: 예지관 | F30: C0101 | G30: 화공안전 | H30: 시약장내 유해인자를 장기간 사용하지 않고 보관 | I30: 오염약품이나 사용기한 초과약품은 다른 시약과의 반응 및 오염의 우려가 있으므로 조속히 폐기처리 해야 함
A31: 61 | B31: 공학,자연과학 | C31: 식품영양과 | D31: 종합실험실 | E31: 예지관 | F31: C0101 | G31: 화공안전 | H31: 화학약품 성상별 구분 없이 보관 | I31: 유해인자는 부식성,가연성,폭발성,독성,산,유기용제,알칼리 등 성상별로 구분하여 적합한 성능을 갖춘 전용 시약장에 보관하도록 함
A32: 62 | B32: 공학,자연과학 | C32: 식품영양과 | D32: 실험준비실 | E32: 예지관 | F32: C0102 | G32: 산업위생 | H32: 실험기기에 대한 안전보건표지(금지, 경고, 안내표지 등) 미부착 | I32: 연구활동종사자의 경각심 고취 및 안전사고 예방을 위하여 안전보건표지 부착
A33: 63 | B33: 공학,자연과학 | C33: 식품영양과 | D33: 기구실 | E33: 예지관 | F33: C0103
A34: 64 | B34: 공학,자연과학 | C34: 식품영양과 | D34: 종합실습실 | E34: 예지관 | F34: C0306
A35: 65 | B35: 공학,자연과학 | C35: 식품영양과 | D35: 조리과학실 | E35: 예지관 | F35: C0307
A36: 66 | B36: 공학,자연과학 | C36: 식품영양과 | D36: 조리실습실 | E36: 예지관 | F36: C0308
A37: 67 | B37: 공학,자연과학 | C37: 식품영양과 | D37: 서양조리실습실 | E37: 예지관 | F37: C0408
A38: 68 | B38: 공학,자연과학 | C38: 식품영양과 | D38: 관능평가실 | E38: 예지관 | F38: C0509
A39: 15 | B39: 공학,자연과학 | C39: 영상&게임콘텐츠과 | D39: 3D VISUAL실 | E39: 한길관 | F39: E0416
A40: 16 | B40: 공학,자연과학 | C40: 영상&게임콘텐츠과 | D40: 컴퓨터실 | E40: 한길관 | F40: E0419
A41: 17 | B41: 공학,자연과학 | C41: 영상&게임콘텐츠과 | D41: 3D STATION실 | E41: 한길관 | F41: E0438 | G41: 전기안전 | H41: 분전반 각 회로별 명판 미부착 | I41: 점검 또는 사고 발생 시 신속한 확인 및 조치가 가능하도록 분전반 각 회로별 명판을 부착
A42: 18 | B42: 공학,자연과학 | C42: 전기과 | D42: 전기공사실습실 | E42: 한길관 | F42: E0323
A43: 19 | B43: 공학,자연과학 | C43: 전기과 | D43: 시퀀스제어실습실 | E43: 한길관 | F43: E0338
A44: 20 | B44: 공학,자연과학 | C44: 전기과 | D44: 전기CAD실 | E44: 한길관 | F44: E0422
A45: 21 | B45: 공학,자연과학 | C45: 전기과 | D45: 전기실습실 | E45: 한길관 | F45: E0432
A46: 22 | B46: 공학,자연과학 | C46: 전자과 | D46: Project실습실 | E46: 한길관 | F46: E0201 | G46: 산업위생 | H46: 납땜 작업 시 납연기 제거기 미설치로 연구활동종사자가 유해물질에 직접적으로 노출되고 있음 | I46: 납땜 작업을 실시 할 때에는 납연기 제거기를 설치하고 개인보호구 착용하여야 함
A47: 22 | B47: 공학,자연과학 | C47: 전자과 | D47: Project실습실 | E47: 한길관 | F47: E0201 | G47: 전기안전 | H47: 연구실 내 개인전열기 보유 | I47: 연구실 내 개인전열기 사용 금지
A48: 22 | B48: 공학,자연과학 | C48: 전자과 | D48: Project실습실 | E48: 한길관 | F48: E0201 | G48: 소방안전 | H48: 소화기 위치 표식 미부착 | I48: 소화기 위치표식 부착 및 눈에 잘 띄는 위치에 비치
A49: 22 | B49: 공학,자연과학 | C49: 전자과 | D49: Project실습실 | E49: 한길관 | F49: E0201 | G49: 화공안전 | H49: 물질안전보건자료(MSDS) 미흡 : 납선, 솔더링 페이스트 등 | I49: 물질안전보건자료의 내용을 납선, 솔더링 페이스트 등도 포함하여 보관중인 주변이나 눈에 잘 띄는 장소에 게시하거나 그 밖에 고용노동부장관이 정하여 고시한 바에 따라 제공하여야 함
A50: 23 | B50: 공학,자연과학 | C50: 전자과 | D50: 컴퓨터실습실 | E50: 한길관 | F50: E0203 | G50: 소방안전 | H50: 소화기 위치 표식 미부착 | I50: 소화기 위치표식 부착 및 눈에 잘 띄는 위치에 비치
A51: 24 | B51: 공학,자연과학 | C51: 전자과 | D51: 디지털공학실험실 | E51: 한길관 | F51: E0207
A52: 25 | B52: 공학,자연과학 | C52: 전자과 | D52: 반도체공정장비실1 | E52: 한길관 | F52: E0212 | G52: 소방안전 | H52: 안전사고 위험이 있는 노후소화기 비치 | I52: 10년이 지난 노후소화기는 교체하여 비치
A53: 26 | B53: 공학,자연과학 | C53: 전자과 | D53: 반도체공정장비실2 | E53: 한길관 | F53: E0213 | G53: 전기안전 | H53: 연구실 내 개인전열기 보유 | I53: 연구실 내 개인전열기 사용 금지
A54: 27 | B54: 공학,자연과학 | C54: 전자과 | D54: 전자공학실험실 | E54: 한길관 | F54: E0216
A55: 28 | B55: 공학,자연과학 | C55: 전자과 | D55: 자동화시스템실험실 | E55: 한길관 | F55: E0236 | G55: 전기안전 | H55: 비접지 실험장비, 기계사용 (확인방법 ☞ 접지선 접속상태, 접지선 탈락, 접지선 접촉 불량, 접지선 단선 여부, 접지저항 기준 미달, 접지선 미시공) | I55: 접지상태 확인 후 접지시설 보완
A56: 28 | B56: 공학,자연과학 | C56: 전자과 | D56: 자동화시스템실험실 | E56: 한길관 | F56: E0236 | G56: 기계안전 | H56: 유해・위험기계 안전검사 미실시 | I56: 유해・위험기계는 설치가 끝난 날부터 3년 이내에 최초 안전검사를 실시하되, 그 이후부터 2년마다 주기적으로 안전검사를 실시
A57: 29 | B57: 공학,자연과학 | C57: 전자과 | D57: 전자응용실험실 | E57: 한길관 | F57: E0316 | G57: 전기안전 | H57: 연구실 내 개인전열기 보유 | I57: 연구실 내 개인전열기 사용 금지
A58: 30 | B58: 공학,자연과학 | C58: 전자과 | D58: 전자제어실험실 | E58: 한길관 | F58: E0320
A59: 31 | B59: 공학,자연과학 | C59: 전자과 | D59: 반도체요소기술실험실 | E59: 한길관 | F59: E0317
A60: 117 | B60: 공학,자연과학 | C60: 정보통신과 | D60: 컴퓨터2실 | E60: 꿈집 | F60: B1001
A61: 118 | B61: 공학,자연과학 | C61: 정보통신과 | D61: 컴퓨터1실 | E61: 꿈집 | F61: B1004
A62: 119 | B62: 공학,자연과학 | C62: 정보통신과 | D62: 응용소프트웨어실 | E62: 꿈집 | F62: B1005 | G62: 일반안전 | H62: 연구실내 음주 행위 금지 | I62: 연구실 내 주류 반입 금지
A63: 120 | B63: 공학,자연과학 | C63: 정보통신과 | D63: 응용전자실험실 | E63: 꿈집 | F63: B1008
A64: 121 | B64: 공학,자연과학 | C64: 정보통신과 | D64: 네트워크실 | E64: 꿈집 | F64: B1102 | G64: 전기안전 | H64: 분전반 각 회로별 명판 미부착 | I64: 점검 또는 사고 발생 시 신속한 확인 및 조치가 가능하도록 분전반 각 회로별 명판을 부착
A65: 122 | B65: 공학,자연과학 | C65: 정보통신과 | D65: 아날로그실습실 | E65: 꿈집 | F65: B1108
A66: 123 | B66: 공학,자연과학 | C66: 정보통신과 | D66: WEBMASTER실 | E66: 꿈집 | F66: B1204
A67: 124 | B67: 공학,자연과학 | C67: 정보통신과 | D67: 정보통신실습실 | E67: 꿈집 | F67: B1215 | G67: 일반안전 | H67: 실험 기자재와 실험재료의 이상 유무와 보호장비의 관리 실태에 대한 일상점검 미실시 | I67: 각 연구실별 상황에 맞는 일상점검 체크리스트 작성 후 그 결과를 기록·유지 관리
A68: 125 | B68: 공학,자연과학 | C68: 정보통신과 | D68: 디지털통신실험실 | E68: 꿈집 | F68: B1304
A69: 126 | B69: 공학,자연과학 | C69: 정보통신과 | D69: e-교실 | E69: 꿈집 | F69: B1305-1
A70: 127 | B70: 공학,자연과학 | C70: 정보통신과 | D70: 캡스톤디자인Ⅲ | E70: 꿈집 | F70: B1305 | G70: 전기안전 | H70: 분전반 각 회로별 명판 미부착 | I70: 점검 또는 사고 발생 시 신속한 확인 및 조치가 가능하도록 분전반 각 회로별 명판을 부착
A71: 32 | B71: 공학,자연과학 | C71: 지능로봇과 | D71: 전동기제어실습실 | E71: 한길관 | F71: E0218
A72: 33 | B72: 공학,자연과학 | C72: 지능로봇과 | D72: 제1컴퓨터실습실 | E72: 한길관 | F72: E0222
A73: 34 | B73: 공학,자연과학 | C73: 지능로봇과 | D73: 기초전자실험실 | E73: 한길관 | F73: E0228 | G73: 산업위생 | H73: 납땜 작업 시 납연기 제거기 미설치로 연구활동종사자가 유해물질에 직접적으로 노출되고 있음 | I73: 납땜 작업을 실시 할 때에는 납연기 제거기를 설치하고 개인보호구 착용하여야 함
A74: 34 | B74: 공학,자연과학 | C74: 지능로봇과 | D74: 기초전자실험실 | E74: 한길관 | F74: E0228 | G74: 화공안전 | H74: 물질안전보건자료(MSDS) 미흡 : 납선, 솔더링 페이스트 등 | I74: 물질안전보건자료의 내용을 납선, 솔더링 페이스트 등도 포함하여 보관중인 주변이나 눈에 잘 띄는 장소에 게시하거나 그 밖에 고용노동부장관이 정하여 고시한 바에 따라 제공하여야 함
A75: 34 | B75: 공학,자연과학 | C75: 지능로봇과 | D75: 기초전자실험실 | E75: 한길관 | F75: E0228 | G75: 기계안전 | H75: 공작기계 드릴머신은 드릴작업 및 칩 제거 작업 시 회전하는 드릴 날에 작업자의 장갑, 소매 등 말림 위험과 안면부(눈 등) 및 팔 등에 칩비산에 의한 상해 우려가 있음 | I75: 실습자의 안전을 위해서 드릴머신 칩비산 부위에 탁상용 드릴 날에 180° 열림이 가능한 투명 원통형 방호덮개 설치
A76: 34 | B76: 공학,자연과학 | C76: 지능로봇과 | D76: 기초전자실험실 | E76: 한길관 | F76: E0228 | G76: 기계안전 | H76: 위험기계 안전수칙 미게시 | I76: 안전수칙을 판넬로 제작하여 실습장 내에 게시하고 작업 시작 전 숙지하게 한 후 작업에 임할 수 있게 조치
A77: 35 | B77: 공학,자연과학 | C77: 지능로봇과 | D77: 로봇공학실 | E77: 한길관 | F77: E0301
A78: 36 | B78: 공학,자연과학 | C78: 지능로봇과 | D78: 시퀸스실습실 | E78: 한길관 | F78: E0343
A79: 78 | B79: 공학,자연과학 | C79: 토목과 | D79: 토질실험실 | E79: 공학관 | F79: A0101
A80: 79 | B80: 공학,자연과학 | C80: 토목과 | D80: 토질실험준비실 | E80: 공학관 | F80: A0102
A81: 80 | B81: 공학,자연과학 | C81: 토목과 | D81: 환경실험실 | E81: 공학관 | F81: A0201
A82: 81 | B82: 공학,자연과학 | C82: 토목과 | D82: 측량실 | E82: 공학관 | F82: A0205
A83: 82 | B83: 공학,자연과학 | C83: 토목과 | D83: CAD실 | E83: 공학관 | F83: A0309 | G83: 일반안전 | H83: 실험 기자재와 실험재료의 이상 유무와 보호장비의 관리 실태에 대한 일상점검 미실시 | I83: 각 연구실별 상황에 맞는 일상점검 체크리스트 작성 후 그 결과를 기록·유지 관리
A84: 83 | B84: 공학,자연과학 | C84: 토목과 | D84: 전산구조설계실 | E84: 공학관 | F84: A0310 | G84: 일반안전 | H84: 실험 기자재와 실험재료의 이상 유무와 보호장비의 관리 실태에 대한 일상점검 미실시 | I84: 각 연구실별 상황에 맞는 일상점검 체크리스트 작성 후 그 결과를 기록·유지 관리
A85: 83 | B85: 공학,자연과학 | C85: 토목과 | D85: 전산구조설계실 | E85: 공학관 | F85: A0310 | G85: 일반안전 | H85: 안전관리규정, 비상연락망, 안전수칙 연구실 내 미비치 | I85: 연구실내 게시 또는 비치
A86: 83 | B86: 공학,자연과학 | C86: 토목과 | D86: 전산구조설계실 | E86: 공학관 | F86: A0310 | G86: 일반안전 | H86: 사고발생 대응절차 미수립 | I86: 연구실현황에 맞는 사고발생에 따른 대응절차를 수립하도록 함
A87: 84 | B87: 공학,자연과학 | C87: 토목과 | D87: 구조재료실험실 | E87: 공학관 | F87: AB101
A88: 85 | B88: 공학,자연과학 | C88: 토목과 | D88: 수리실험실 | E88: 공학관 | F88: AB102 | G88: 전기안전 | H88: 연구실 내 개인전열기 보유 | I88: 연구실 내 개인전열기 사용 금지
A89: 69 | B89: 공학,자연과학 | C89: 호텔외식조리과 | D89: 한식조리실 | E89: 예지관 | F89: C0201 | G89: 전기안전 | H89: 연구실 내 개인전열기 보유 | I89: 연구실 내 개인전열기 사용 금지
A90: 69 | B90: 공학,자연과학 | C90: 호텔외식조리과 | D90: 한식조리실 | E90: 예지관 | F90: C0201 | G90: 전기안전 | H90: 분전반 전면 기구 비치로 개폐 미흡 | I90: 화재 및 위험상황시 전원을 차단하기 어려움으로 분전반 점검 가능하도록 주변 정리
A91: 70 | B91: 공학,자연과학 | C91: 호텔외식조리과 | D91: 제과제빵실 | E91: 예지관 | F91: C0203 | G91: 소방안전 | H91: 소화기 위치 표식 미부착 | I91: 소화기 위치표식 부착 및 눈에 잘 띄는 위치에 비치
A92: 71 | B92: 공학,자연과학 | C92: 호텔외식조리과 | D92: 식음료 및 식공간 연출 | E92: 예지관 | F92: C0205
A93: 72 | B93: 공학,자연과학 | C93: 호텔외식조리과 | D93: 양식조리실 | E93: 예지관 | F93: C0301
A94: 73 | B94: 공학,자연과학 | C94: 호텔외식조리과 | D94: 푸드스튜디오 | E94: 예지관 | F94: C0401 | G94: 전기안전 | H94: 연구실 내 개인전열기 보유 | I94: 연구실 내 개인전열기 사용 금지
A95: 74 | B95: 공학,자연과학 | C95: 호텔외식조리과 | D95: 메뉴 개발실1 | E95: 예지관 | F95: C0501 | G95: 전기안전 | H95: 연구실 내 개인전열기 보유 | I95: 연구실 내 개인전열기 사용 금지
A96: 75 | B96: 공학,자연과학 | C96: 호텔외식조리과 | D96: 메뉴 개발실2 | E96: 예지관 | F96: C0502
A97: 76 | B97: 공학,자연과학 | C97: 호텔외식조리과 | D97: NCS-Multipurpose Kitchen | E97: 한길관 | F97: EB135
A98: 77 | B98: 공학,자연과학 | C98: 호텔외식조리과 | D98: NCS-BakingScience&Art Room | E98: 한길관 | F98: EB135-1
A99: 1 | B99: 공학,자연과학 | C99: 간호학과(소사) | D99: 건강사정실습실 | E99: 공학강의동 | F99: K0605
A100: 2 | B100: 공학,자연과학 | C100: 간호학과(소사) | D100: 시뮬레이션센터 | E100: 공학강의동 | F100: K0614-K0617
A101: 3 | B101: 공학,자연과학 | C101: 간호학과(소사) | D101: 기초간호과학실습실 | E101: 공학강의동 | F101: K0606
A102: 4 | B102: 공학,자연과학 | C102: 간호학과(소사) | D102: 기본간호학실습실 | E102: 공학강의동 | F102: K0602 | G102: 전기안전 | H102: 연구실 내 개인전열기 보유 | I102: 연구실 내 개인전열기 사용 금지
A103: 4 | B103: 공학,자연과학 | C103: 간호학과(소사) | D103: 기본간호학실습실 | E103: 공학강의동 | F103: K0602 | G103: 생물안전 | H103: 의료폐기물 보관기간 초과 | I103: 의료폐기물은 최초 사용일로부터 15일을 초과하여 보관해서는 안 됨(손상성 폐기물 30일)
A104: 5 | B104: 공학,자연과학 | C104: 간호학과(소사) | D104: 자율실습실 | E104: 공학강의동 | F104: K0601 | G104: 전기안전 | H104: 케이블 정리 상태 미흡 및 통행이동 중 전도위험 | I104: 케이블타이 및 안전덮개를 이용하여 전선 관리 및 전선 피복 손상되지 않도록 함
A105: 5 | B105: 공학,자연과학 | C105: 간호학과(소사) | D105: 자율실습실 | E105: 공학강의동 | F105: K0601 | G105: 생물안전 | H105: 의료폐기물 사용개시일 미기재 | I105: 의료폐기물은 최초 사용일로부터 15일을 초과하여 보관해서는 안 됨(손상성 폐기물 30일)
A106: 6 | B106: 공학,자연과학 | C106: 공용실(소사) | D106: 제1컴퓨터실 | E106: 공학강의동 | F106: K0401
A107: 7 | B107: 공학,자연과학 | C107: 공용실(소사) | D107: 제2컴퓨터실 | E107: 공학강의동 | F107: K0402
A108: 8 | B108: 공학,자연과학 | C108: 공용실(소사) | D108: 제3컴퓨터실 | E108: 공학강의동 | F108: K0404
A109: 9 | B109: 공학,자연과학 | C109: 공용실(소사) | D109: 제4컴퓨터실 | E109: 공학강의동 | F109: K0405
A110: 10 | B110: 공학,자연과학 | C110: 공용실(소사) | D110: 제5컴퓨터실 | E110: 공학강의동 | F110: K0406
A111: 11 | B111: 공학,자연과학 | C111: 공용실(소사) | D111: 제6컴퓨터실 | E111: 공학강의동 | F111: K0407
A112: 12 | B112: 공학,자연과학 | C112: 공용실(소사) | D112: 제7컴퓨터실 | E112: 공학강의동 | F112: K0501
A113: 13 | B113: 공학,자연과학 | C113: 공용실(소사) | D113: 제8컴퓨터실 | E113: 공학강의동 | F113: K0524
A114: 14 | B114: 공학,자연과학 | C114: 공용실(소사) | D114: 제9컴퓨터실 | E114: 공학강의동 | F114: K0701
A115: 46 | B115: 예체능 | C115: 디지털미디어디자인과 | D115: 디자인실습실6 | E115: 한길관 | F115: E0515
A116: 47 | B116: 예체능 | C116: 디지털미디어디자인과 | D116: 컴퓨터교육실3 | E116: 한길관 | F116: E0510
A117: 48 | B117: 예체능 | C117: 디지털미디어디자인과 | D117: 컴퓨터교육실2 | E117: 한길관 | F117: E0517
A118: 49 | B118: 예체능 | C118: 디지털미디어디자인과 | D118: 컴퓨터교육실1 | E118: 한길관 | F118: E0520
A119: 50 | B119: 예체능 | C119: 디지털미디어디자인과 | D119: 팀 세미나실 | E119: 한길관 | F119: E0511
A120: 51 | B120: 예체능 | C120: 디지털미디어디자인과 | D120: 운송기기 크레이 모델링실 | E120: 한길관 | F120: EB1 | G120: 산업위생 | H120: 연구실내에 구급함이 비치되어 있으나 구급약품의 사용기간이 지남 | I120: 사용기간이 지난 구급약품은 교체하여 비치
A121: 51 | B121: 예체능 | C121: 디지털미디어디자인과 | D121: 운송기기 크레이 모델링실 | E121: 한길관 | F121: EB1 | G121: 산업위생 | H121: 보호구 관리 미흡 | I121: 보호구는 2차오염이 없는 곳에 보관하여 사용할 수 있도록 하며, 보호구함 보관 시 보호구 수량 및 종류를 기입하여 관리 하도록 권장
A122: 52 | B122: 예체능 | C122: 디지털미디어디자인과 | D122: 운송기기 크레이 모델링 준비실 | E122: 한길관 | F122: EB131 | G122: 산업위생 | H122: 보호구 관리 미흡 | I122: 보호구는 2차오염이 없는 곳에 보관하여 사용할 수 있도록 하며, 보호구함 보관 시 보호구 수량 및 종류를 기입하여 관리 하도록 권장
A123: 52 | B123: 예체능 | C123: 디지털미디어디자인과 | D123: 운송기기 크레이 모델링 준비실 | E123: 한길관 | F123: EB131 | G123: 기계안전 | H123: 연삭기 칩비산방지판 미부착 | I123: 작업 시 칩 비산에 의한 재해예방을 위하여 적정 강도의 비산 방지판을 설치
A124: 52 | B124: 예체능 | C124: 디지털미디어디자인과 | D124: 운송기기 크레이 모델링 준비실 | E124: 한길관 | F124: EB131 | G124: 기계안전 | H124: 위험기계 안전수칙 미게시 | I124: 안전수칙을 판넬로 제작하여 실습장 내에 게시하고 작업 시작 전 숙지하게 한 후 작업에 임할 수 있게 조치
A125: 53 | B125: 예체능 | C125: 디지털미디어디자인과 | D125: 컴퓨터교육실4 | E125: 한길관 | F125: E0523
A126: 54 | B126: 예체능 | C126: 디지털미디어디자인과 | D126: 3D프린트가공실 | E126: 한길관 | F126: E0550
A127: 55 | B127: 예체능 | C127: 디지털미디어디자인과 | D127: 디자인실습실4 | E127: 한길관 | F127: E0502
A128: 56 | B128: 예체능 | C128: 디지털미디어디자인과 | D128: 디자인실습실5 | E128: 한길관 | F128: E0504
A129: 57 | B129: 예체능 | C129: 디지털미디어디자인과 | D129: 디자인실습실3 | E129: 한길관 | F129: E0539 | G129: 일반안전 | H129: 안전관리규정, 비상연락망, 안전수칙 연구실 내 미비치 | I129: 연구실내 게시 또는 비치
A130: 57 | B130: 예체능 | C130: 디지털미디어디자인과 | D130: 디자인실습실3 | E130: 한길관 | F130: E0539 | G130: 일반안전 | H130: 사고발생 대응절차 미수립 | I130: 연구실현황에 맞는 사고발생에 따른 대응절차를 수립하도록 함
A131: 58 | B131: 예체능 | C131: 디지털미디어디자인과 | D131: 디자인실습실2 | E131: 한길관 | F131: E0536
A132: 59 | B132: 예체능 | C132: 디지털미디어디자인과 | D132: 디자인실습실1 | E132: 한길관 | F132: E0533
A133: 60 | B133: 예체능 | C133: 디지털미디어디자인과 | D133: 4학년 전공연구실 | E133: 한길관 | F133: E0530
A134: 133 | B134: 예체능 | C134: 뷰티융합비즈니스과 | D134: 뷰티융합비즈니스 훈련센터 | E134: 밀레니엄관 | F134: H0105
A135: 134 | B135: 예체능 | C135: 뷰티케어과(뷰티전공) | D135: 스킨케어실 | E135: 밀레니엄관 | F135: H0401
A136: 135 | B136: 예체능 | C136: 뷰티케어과(뷰티전공) | D136: 네일아트실 | E136: 밀레니엄관 | F136: H0405
A137: 136 | B137: 예체능 | C137: 뷰티케어과(헤어전공) | D137: 메이크업아트실 | E137: 밀레니엄관 | F137: H0406
A138: 137 | B138: 예체능 | C138: 뷰티케어과(헤어전공) | D138: 헤어디자인실 | E138: 밀레니엄관 | F138: H0407
A139: 96 | B139: 예체능 | C139: 실내건축디자인과 | D139: 컴퓨터프레젠테이션실 | E139: 공학관 | F139: A0107 | G139: 일반안전 | H139: 안전관리규정, 비상연락망, 안전수칙 연구실 내 미비치 | I139: 연구실내 게시 또는 비치
A140: 97 | B140: 예체능 | C140: 실내건축디자인과 | D140: 전공스튜디오실 | E140: 공학관 | F140: A0301
A141: 98 | B141: 예체능 | C141: 실내건축디자인과 | D141: 컴퓨터그래픽실 | E141: 공학관 | F141: A0302 | G141: 일반안전 | H141: 실험 기자재와 실험재료의 이상 유무와 보호장비의 관리 실태에 대한 일상점검 미실시 | I141: 각 연구실별 상황에 맞는 일상점검 체크리스트 작성 후 그 결과를 기록·유지 관리
A142: 99 | B142: 예체능 | C142: 실내건축디자인과 | D142: 서버실 | E142: 공학관 | F142: A0302-1
A143: 100 | B143: 예체능 | C143: 실내건축디자인과 | D143: 모형실습실 | E143: 공학관 | F143: AB103
A144: 101 | B144: 예체능 | C144: 실내건축디자인과 | D144: 스튜디오05 | E144: 예지관 | F144: C0104
A145: 102 | B145: 예체능 | C145: 실내건축디자인과 | D145: 스튜디오06 | E145: 예지관 | F145: C0104-1
A146: 103 | B146: 예체능 | C146: 실내건축디자인과 | D146: 스튜디오07 | E146: 예지관 | F146: C0105 | G146: 일반안전 | H146: 안전관리규정, 비상연락망, 안전수칙 연구실 내 미비치 | I146: 연구실내 게시 또는 비치
A147: 104 | B147: 예체능 | C147: 실내건축디자인과 | D147: 스튜디오08 | E147: 예지관 | F147: C0105-1
A148: 105 | B148: 예체능 | C148: 실내건축디자인과 | D148: 스튜디오01 | E148: 예지관 | F148: CB101-1 | G148: 일반안전 | H148: 안전관리규정, 비상연락망, 안전수칙 연구실 내 미비치 | I148: 연구실내 게시 또는 비치
A149: 105 | B149: 예체능 | C149: 실내건축디자인과 | D149: 스튜디오01 | E149: 예지관 | F149: CB101-1 | G149: 일반안전 | H149: 사고발생 대응절차 미수립 | I149: 연구실현황에 맞는 사고발생에 따른 대응절차를 수립하도록 함
A150: 106 | B150: 예체능 | C150: 실내건축디자인과 | D150: 스튜디오02 | E150: 예지관 | F150: CB102 | G150: 소방안전 | H150: 소화기 미비치 | I150: 소화기는 눈에 잘 띄는 위치에 비치 및 표식 부착 필요
A151: 107 | B151: 예체능 | C151: 실내건축디자인과 | D151: 스튜디오03 | E151: 예지관 | F151: CB102-1
A152: 108 | B152: 예체능 | C152: 실내건축디자인과 | D152: 스튜디오04 | E152: 예지관 | F152: CB103
A153: 109 | B153: 예체능 | C153: 실내건축디자인과 | D153: 졸업준비 및 스튜디오 | E153: 예지관 | F153: CB104
A154: 110 | B154: 예체능 | C154: 실내건축디자인과 | D154: 디자인1실 | E154: 예지관 | F154: CB101 | G154: 일반안전 | H154: 안전관리규정, 비상연락망, 안전수칙 연구실 내 미비치 | I154: 연구실내 게시 또는 비치
A155: 110 | B155: 예체능 | C155: 실내건축디자인과 | D155: 디자인1실 | E155: 예지관 | F155: CB101 | G155: 소방안전 | H155: 소화전 사용법 부착 미흡 | I155: 옥내소화전설비의 함에는 그 표면에 "소화전"이라는 표시와 사용요령을 기재한 표지판(외국어 병기)을 붙여야 함
A156: 111 | B156: 예체능 | C156: 실내건축디자인과 | D156: 디자인3실 | E156: 예지관 | F156: CB105 | G156: 소방안전 | H156: 소화기 위치 표식 미부착 | I156: 소화기 위치표식 부착 및 눈에 잘 띄는 위치에 비치
A157: 112 | B157: 예체능 | C157: 실내건축디자인과 | D157: 디자인2실 | E157: 예지관 | F157: CB107
A158: 113 | B158: 예체능 | C158: 실내건축디자인과 | D158: 목공예실 | E158: 한길관 | F158: EB112 | G158: 산업위생 | H158: 연구실내에 구급함이 비치되어 있으나 구급약품의 사용기간이 지남 | I158: 사용기간이 지난 구급약품은 교체하여 비치
A159: 113 | B159: 예체능 | C159: 실내건축디자인과 | D159: 목공예실 | E159: 한길관 | F159: EB112 | G159: 기계안전 | H159: 공작기계 드릴머신은 드릴작업 및 칩 제거 작업 시 회전하는 드릴 날에 작업자의 장갑, 소매 등 말림 위험과 안면부(눈 등) 및 팔 등에 칩비산에 의한 상해 우려가 있음 | I159: 실습자의 안전을 위해서 드릴머신 칩비산 부위에 탁상용 드릴 날에 180° 열림이 가능한 투명 원통형 방호덮개 설치
A160: 113 | B160: 예체능 | C160: 실내건축디자인과 | D160: 목공예실 | E160: 한길관 | F160: EB112 | G160: 기계안전 | H160: 위험기계 안전수칙 미게시 | I160: 안전수칙을 판넬로 제작하여 실습장 내에 게시하고 작업 시작 전 숙지하게 한 후 작업에 임할 수 있게 조치
A161: 114 | B161: 예체능 | C161: 실내건축디자인과 | D161: 목공구실 | E161: 한길관 | F161: EB129 | G161: 산업위생 | H161: 보호구 관리 미흡 | I161: 보호구는 2차오염이 없는 곳에 보관하여 사용할 수 있도록 하며, 보호구함 보관 시 보호구 수량 및 종류를 기입하여 관리 하도록 권장
A162: 114 | B162: 예체능 | C162: 실내건축디자인과 | D162: 목공구실 | E162: 한길관 | F162: EB129 | G162: 기계안전 | H162: 둥근톱기계의 날접촉 예방 장치 및 반발예방장치(분할날)가 미설치 | I162: 미설치 된 날 접촉 예방방지장치 및 반발예방장치(분할날)를 설치해서 목재 절단 시 날 접촉 및 목재반발에 의한 사고 방지
A163: 114 | B163: 예체능 | C163: 실내건축디자인과 | D163: 목공구실 | E163: 한길관 | F163: EB129 | G163: 기계안전 | H163: 위험기계 안전수칙 미게시 | I163: 안전수칙을 판넬로 제작하여 실습장 내에 게시하고 작업 시작 전 숙지하게 한 후 작업에 임할 수 있게 조치
A164: 115 | B164: 예체능 | C164: 실내건축디자인과 | D164: 금속공예1실 | E164: 한길관 | F164: EB118 | G164: 일반안전 | H164: 안전관리규정, 비상연락망, 안전수칙 연구실 내 미비치 | I164: 연구실내 게시 또는 비치
A165: 115 | B165: 예체능 | C165: 실내건축디자인과 | D165: 금속공예1실 | E165: 한길관 | F165: EB118 | G165: 산업위생 | H165: 보호구 관리 미흡 | I165: 보호구는 2차오염이 없는 곳에 보관하여 사용할 수 있도록 하며, 보호구함 보관 시 보호구 수량 및 종류를 기입하여 관리 하도록 권장
A166: 115 | B166: 예체능 | C166: 실내건축디자인과 | D166: 금속공예1실 | E166: 한길관 | F166: EB118 | G166: 전기안전 | H166: 비접지형 멀티탭·콘센트 사용 | I166: 접지형 콘센트·멀티탭 교체 사용
A167: 115 | B167: 예체능 | C167: 실내건축디자인과 | D167: 금속공예1실 | E167: 한길관 | F167: EB118 | G167: 소방안전 | H167: 안전사고 위험이 있는 노후소화기 비치 | I167: 10년이 지난 노후소화기는 교체하여 비치
A168: 116 | B168: 예체능 | C168: 실내건축디자인과 | D168: 금속공예2실 | E168: 한길관 | F168: EB122 | G168: 산업위생 | H168: 연구실내에 구급함이 비치되어 있으나 구급약품의 사용기간이 지남 | I168: 사용기간이 지난 구급약품은 교체하여 비치
A169: 116 | B169: 예체능 | C169: 실내건축디자인과 | D169: 금속공예2실 | E169: 한길관 | F169: EB122 | G169: 산업위생 | H169: 보호구 관리 미흡 | I169: 보호구는 2차오염이 없는 곳에 보관하여 사용할 수 있도록 하며, 보호구함 보관 시 보호구 수량 및 종류를 기입하여 관리 하도록 권장
A170: 116 | B170: 예체능 | C170: 실내건축디자인과 | D170: 금속공예2실 | E170: 한길관 | F170: EB122 | G170: 화공안전 | H170: 물질안전보건자료(MSDS) 미비치(용접봉) | I170: 보유중인 모든 유해인자에 대한 물질안전보건자료(MSDS)를 보관중인 주변이나 눈에 잘 띄는 장소에 게시하거나 그 밖에 고용노동부장관이 정하여 고시한 바에 따라 제공하여야 함
A171: 116 | B171: 예체능 | C171: 실내건축디자인과 | D171: 금속공예2실 | E171: 한길관 | F171: EB122 | G171: 화공안전 | H171: 폐액의 성상 구분 없이 보관 및 라벨 미부착 | I171: 폐액은 폐산, 폐알칼리, 폐유기용제(할로겐,비할로겐), 폐유 등으로 분류 후 전도 되지 않도록 보관하며 절대로 하수구나 싱크대에 버리는 일이 없도록 해야 함
A172: 129 | B172: 예체능 | C172: 재활스포츠과 | D172: 실습실B | E172: 기념관,체육관 | F172: I0205
A173: 130 | B173: 예체능 | C173: 재활스포츠과 | D173: 실습실A | E173: 기념관,체육관 | F173: I0201-1 | G173: 전기안전 | H173: 케이블 정리 상태 미흡 및 통행이동 중 전도위험 | I173: 케이블타이 및 안전덮개를 이용하여 전선 관리 및 전선 피복 손상되지 않도록 함
A174: 131 | B174: 예체능 | C174: 재활스포츠과 | D174: 댄스실 | E174: 기념관,체육관 | F174: I0101
A175: 132 | B175: 예체능 | C175: 재활스포츠과 | D175: TRX실 | E175: 기념관,체육관 | F175: IB104
